Workbook

Sheet Contratos
C1: PLANILHA DE CONTRATOS DE AQUISIÇÃO, ALUGUEL E PRESTAÇÃO DE SERVIÇOS | AB1: CCD.: 035.1
AB2: FPOP-G.GPO.CCO-01 VERSÃO 05 JANEIRO/2019
N3: Atualizada em | AB3: Atualizada em | AC3: 2024-09-06
A4: Nº | B4: CONTRATO PORTAL | C4: NÚMERO SEI | D4: CONTRATADO | E4: OBJETO DO CONTRATO | F4: COMODATO | G4: APÓLICE/GARANTIA DA EXECUAÇÃO | H4: DATA INICIAL DO CONTRATO | I4: DATA FINAL/ TOTAL DA CONTRATAÇÃO | J4: DATA INICIAL DO ÚLTIMO TERMO ADITIVO | K4: DATA FINAL DO ÚLTIMO TERMO ADITIVO | L4: MÊS DE REFERÊNCIA PARA EMISSÃO DO AVISO | M4: ANO DE REFERÊNCIA PARA EMISSÃO DE AVISO | N4: VALOR MENSAL | O4: VALOR TOTAL | P4: SIGLA SETOR | Q4: RESPONSÁVEL TÉCNICO | R4: FISCAL | S4: FISCAL SUPLENTE | T4: GESTOR | U4: GESTOR SUPLENTE | V4: SIGED | W4: Colunas1
A5: 9410.283/24 | B5: 9410283 | C5: 2320.01.0012356/2023-68 | D5: A&M Solution Agencia Digital Ltda | E5: Prestação de serviço de Manutenção e Suporte do Portal Hemominas (Site e Intranet). | F5: Não | H5: 2024-02-22 | I5: 2029-02-21 | J5: 2025-02-22 | K5: 2026-02-21 | L5: 02 | M5: 2026 | N5: =O5/12 -> 23583.18 | O5: 282998.16 | P5: I.GTC.ADS I.GTC | R5: Juan Pablo Figueiredo Silva | S5: Adriana Lúcia dos Santos | T5: Emilene Gomes e Silva | U5: Marcela Soares Ferreira | V5: SEI
A6: 9293.818/21 | B6: 9293818 | C6: 2320.01.0013616/2021-04 | D6: AACP SERVIÇO AMBIENTAL EIRELI | E6: Prestação de Serviço de limpeza e tratamento de caixas de água e reservatórios (Lotes 02 e 04) | F6: Não | H6: 2021-10-16 | I6: 2026-10-15 | J6: 2024-10-16 | K6: 2025-10-15 | L6: 10 | M6: 2025 | N6: 472.33 | O6: 5.668,00 | P6: JFO.A.MAT GOV.A.MAT I.GIF.MPR | R6: Fernando dos Santos Henriques/Deivandro Lessa | S6: Márcio Rinco Rocha/Bruno Sousa Macedo | T6: Marisa de Lima Marques Nogueira | U6: Renata Azzi Júdice | V6: SEI
A7: 9369.083/23 | B7: 9369083 | C7: 2320.01.0016834/2022-27 | D7: AACP Serviço Ambiental Eireli | E7: Prestação de serviços de análise e monitoramento da qualidade da água nas edificações utilizadas pela Fundação Hemominas (Lotes 02 a 08). | F7: Não | H7: 2023-03-01 | I7: 2028-02-28 | J7: 2025-03-01 | K7: 2026-02-28 | L7: 02 | M7: 2026 | N7: =O7/12 -> 4237.291667 | O7: 50847.5 | P7: I.GIF.AQE | R7: Jéssica Rodrigues Barbosa | S7: Dirceu Alves Jácome Junior | T7: Maycon do Vale Silva | U7: Marcela Soares Ferreira | V7: SEI
A8: 9453.558/25 | B8: 9453558 | C8: 2320.01.0000944/2025-17 | D8: Abbott Laboratórios do Brasil Ltda | E8: Aquisição de reagentes para triagem sorológica de doadores. | F8: Não | H8: 2025-03-03 | I8: 2025-09-02 | L8: 09 | M8: 2025 | O8: 5456160 | P8: T.GLA.CSO | R8: Sônia Mara Nunes da Silva | S8: Leonardo Antônio Renna Batalha | T8: Lizziane d'Ávila Pereira | U8: Marcela Soares Ferreira | V8: SEI
A9: 9400.454/23 | B9: 9400454 | C9: 2320.01.0011240/2023-33 | D9: ABHH - Associação Brasileira de Hematologia, Hemoterapia e Terapia Celular | E9: Contratação dos serviços de Auditoria e Assessoria do Programa de Acreditação da ABHH & AABB para acreditação do serviço de Terapia Celular no Centro de Tecidos Biológicos de Minas Gerais - CETEBIO. | F9: Não | H9: 2023-12-08 | I9: 2025-12-07 | J9: - | L9: 12 | M9: 2025 | N9: 5672.808333 | O9: 68073.7 | P9: PRE.AAE | R9: Diogo Wanis Lara | S9: Jussara Cristina Barbosa | T9: Emilene Gomes e Silva | U9: Marcela Soares Ferreira | V9: SEI
A10: 9428.626/24 | B10: 9428626 | C10: 2320.01.0003370/2024-90 | D10: ABHH – ASSOCIAÇÃO BRASILEIRA DE HEMATOLOGIA, HEMOTERAPIA E TERAPIA CELULAR | E10: contratação dos serviços de AUDITORIA e ASSESSORIA do Programa de Acreditação da ABHH & AABB para acreditação do serviço de Banco de Sangue e Transfusão no Hemocentro de Belo Horizonte | F10: Não | H10: 2024-06-07 | I10: 2026-06-06 | J10: - | L10: 06 | M10: 2026 | N10: 6787.56 | O10: 86000.46 | P10: PRE.AAE | R10: Diogo Wanis Lara | S10: Jussara Cristina Barbosa | T10: Maycon do Vale Silva | U10: Lizziane d'Ávila Pereira | V10: SEI
A11: 9388.538/23 | B11: 9388538 | C11: 2320.01.0000097/2023-97 | D11: ACI Comércio Ltda - EPP | E11: Prestação de serviço de manutenção, reparo, conservação e adaptação em equipamentos e instrumentos odontológicos,. | F11: Não | H11: 2023-06-17 | I11: 2028-06-16 | J11: 2025-06-17 | K11: 2026-06-16 | L11: 06 | M11: 2026 | N11: =O11/12 -> 1811.63 | O11: 21739.56 | P11: GAD.JFO.A.COM | R11: Paulo Henrique Gomes Souza | S11: Vitor Valente Campos | T11: Marcela Soares Ferreira | U11: Marisa de Lima Marques Nogueira | V11: SEI
A12: 9393.310/23 | B12: 9393310 | C12: 2320.01.0006171/2023-29 | D12: ACTS do Brasil Ltda | E12: Aquisição de Bolsas para congelamento de células progenitoras (lote 01). | F12: Não | H12: 2023-09-02 | I12: 2028-09-01 | J12: 2024-09-02 | K12: 2025-09-01 | L12: 09 | M12: 2025 | N12: - | O12: 1352133.6 | P12: CETEBIO.G. EXECUTIVA | R12: Maria Lúcia Soares de Moura | S12: Thiago Jocides Arruda Batista | T12: Marisa de Lima Marques Nogueira | U12: Marcela Soares Ferreira | V12: SEI
A13: 9438.010/24 | B13: 9438010 | C13: 2320.01.0008054/2024-13 | D13: ACTS do Brasil Ltda | E13: Aquisição de Frascos de Dimetilsulfóxido. | F13: Não | H13: 2024-09-27 | I13: 2025-09-26 | J13: - | L13: 09 | M13: 2025 | N13: - | O13: 426394.8 | P13: CETEBIO / G.GTCE / CPC | R13: Maria Lúcia Soares de Moura | S13: Luciana de Almeida Costa | T13: Maycon do Vale Silva | U13: Lizziane d'Avila Pereira | V13: SEI
A14: 9452.470/25 | B14: 9452470 | C14: 2320.01.0007936/2024-95 | D14: ADDLIFE DIAGNÓSTICOS LTDA - EPP | E14: Aquisição de conjunto completo para pesquisa de anticorpos/antígeno para HBsAg, anti-/HBC, anti-HCV, anti-HTLV I/II, anti-HIV 1+2 e subtipo O, Sífilis e Chagas, para realização de testes confirmatórios de soroconversão em amostras de doadores de sangue, com equipamento em comodato. | F14: Sim | H14: 2025-02-28 | I14: 2026-02-27 | L14: 02 | M14: 2026 | O14: 409104 | P14: T.GLA.CSO | R14: Leonardo Antônio Renna Batalha | S14: Sônia Mara Nunes da Silva | T14: Lizziane d'Avila Pereira | U14: Marcela Soares Ferreira | V14: SEI
A15: 3459/14 | B15: 3459 | C15: 2320.01.0001306/2018-61 | D15: Administradora Metrópole - Administração e Corretagem de Imóveis Ltda | E15: Locação de 01 (um) imóvel situado na Rua Grão Pará, nº 882 - Santa Efigênia, Belo Horizonte/MG, composto de hall de entrada, 02 (dois) pavimentos de garagem, pilotis e salas do 4º ao 8º andares, totalizando área de aproximadamente, 3.856,16 m². | F15: Não | J15: 2025-04-25 | K15: 2026-04-24 | L15: 04 | M15: 2026 | N15: =O15/12 -> 100208.17 | O15: 1202498.04 | P15: DGI.NZL | Q15: Adilson Meireles Pacheco | R15: Marcelo de Aguiar Gomes | S15: Maria Beatriz Souza Melo Sarsur | T15: Marcela Soares Ferreira | U15: Adriana Aparecida Tavares Diniz | V15: SEI
A16: 9389.826/23 | B16: 9389826 | C16: 2320.01.0001219/2023-67 | D16: Agência de Integração Empresa Escola Ltda. | E16: Prestação de serviço de gestão de estagiários para a Fundação Hemominas. | F16: Não | H16: 2023-07-14 | I16: 2028-07-13 | J16: 2024-07-14 | K16: 2025-07-13 | L16: 07 | M16: 2025 | N16: 267643.8833 | O16: 3211726.6 | P16: G.GGP.TDE | R16: Manuela Mota Hauck | S16: Andréa Maria Almeida Medrado | T16: Marisa de Lima Marques Nogueira | U16: Marcela Soares Ferreira | V16: SEI
A17: 9470.024/25 | B17: 9470024 | C17: 2320.01.0008301/2025-34 | D17: Agenes S. da Silva Suprimentos de Informática - ME. | E17: Compra de equipamentos técnicos (lotes 08 e 09). | F17: Não | H17: 2025-06-13 | I17: 2026-06-12 | L17: 06 | M17: 2026 | O17: 36480 | P17: DGI.ENC.CAT | R17: Asaph Calazans Mendes de Souza | S17: Manoel Ricardo Caires Fernandes | T17: Anna Luíza Leandro Fernandes Moreira | U17: Marcela Soares Ferreira | V17: SEI
A18: 9470.713/25 | B18: 9470713 | C18: 2320.01.0009096/2025-06 | D18: Agropecuária Fazenda do Bento Ind. E Com. Ltda. | E18: Compra de café torrado e moído e açúcar cristal (lote 01). | F18: Não | H18: 2025-06-24 | I18: 2026-06-23 | L18: 06 | M18: 2026 | O18: 333760 | P18: DGI.NZL | R18: Marcelo de Aguiar Gomes | S18: Nilza de Melo Pereira | T18: Anna Luíza Leandro Fernandes Moreira | U18: Marcela Soares Ferreira | V18: SEI
A19: 9442.796/24 | B19: 9442796 | C19: 2320.01.0006876/2024-03 | D19: Alcides Pires Gomes 60867914653 - ME. | E19: Prestação de Serviço de manutenção e limpeza de jardins e de corte e/ou poda de árvores, contempando o replantio com fornecimento de plantas e gramas nas áreas vegetadas do Hemonúcleo de Divinópolis. | F19: Não | H19: 2024-11-28 | I19: (COTEP) | J19: - | L19: 11 | M19: 2025 | O19: 11869.96 | P19: DIV/GAD | R19: Nilba Valéria Pinheiro de Oliveira | S19: Nayara Suélem Silva | T19: Marcela Soares Ferreira | U19: Lizziane d'Avila Pereira | V19: SEI
A20: 9344.035/22 | B20: 9344035 | C20: 2320.01.0003079/2022-96 | D20: Allegra Tecnologia Ltda - ME | E20: Prestação de serviço de monitoramento da qualidade do ar do Hemocentro Regional de Juiz de Fora da Fundação Hemominas. | F20: Não | H20: 2022-07-13 | I20: (COTEP) | J20: 2024-07-13 | K20: 2025-07-12 | L20: 07 | M20: 2025 | N20: 441.6425 | O20: 5299.71 | P20: GAD.JFO | R20: Victor Valente Campos | S20: Victor Valente Campos | T20: Dallila Rodrigues Júlia | U20: Marcela Soares Ferreira | V20: SEI
A21: 9350.488/22 | B21: 9350488 | C21: 2320.01.0009625/2022-88 | D21: Allegra Tecnologia Ltda - ME | E21: Prestação de serviço de higienização e limpeza do sistema de climatização/difusores para insuflamento e retorno do ar climatizado ambiente. | F21: Não | H21: 2022-11-18 | I21: 2027-11-17 | J21: 2024-11-18 | K21: 2025-11-17 | L21: 11 | M21: 2025 | N21: 1999.25 | O21: 23991 | P21: DGI.ENC | R21: João Silvestre Guimarães Gonçalves | S21: Alexandre Vitor da Silva | T21: Maycon do Vale Silva | U21: Marcela Soares Ferreira | V21: SEI
A22: 9398.952/23 | B22: 9398952 | C22: 2320.01.0005246/2023-75 | D22: Allegra Tecnologia Ltda - ME | E22: Prestação de serviço de monitoramento da qualidade do ar. | F22: Não | H22: 2023-11-10 | I22: (COTEP) | J22: 2024-11-10 | K22: 2025-11-09 | L22: 11 | M22: 2025 | N22: 620.035 | O22: 7440.42 | P22: GAD.MOC.A.COM | R22: Daniel Nascimento Salgado | S22: Nátaly Mariana Silva | T22: Emilene Gomes e Silva | U22: Marcela Soares Ferreira | V22: SEI
A23: 9470.562/25 | B23: 9470562 | C23: 2320.01.0008887/2025-23 | D23: Allegra Tecnologia Ltda | E23: Contratação de servilos de monitoramento da qualidade do ar nas unidades da Fundação Hemominas em Uberlândia e Lagoa Santa (lotes 01 e 03). | F23: Não | H23: 2025-06-18 | I23: 2035-06-17 | L23: 06 | M23: 2026 | O23: 21420 | P23: DGI.ENC | R23: Felipe Garabini Antunes | S23: João Silvestre Guimarães Gonçalves | T23: Anna Luíza Leandro Fernandes Moreira | U23: Marcela Soares Ferreira | V23: SEI
A24: 9376.857/23 | B24: 9376857 | C24: 2320.01.0014342/2022-90 | D24: Amazonas Comércio de Adesivos e Brindes Ltda - ME | E24: Prestação de serviço de confecção e fornecimento de cartão-crachá eletrônico, computadorizado e cartão eletrônico. | F24: Não | H24: 2023-03-17 | I24: (COTEP) | J24: 2025-03-17 | K24: 2026-03-16 | L24: 03 | M24: 2026 | N24: 483.75 | O24: 5805 | P24: G.GGP.PES G.GGP. PES.FREQUENCIA | R24: Sibéria Oliveira da Cruz | S24: Tiago Paulo da Silva Jorge | T24: Dallila Rodrigues Júlia | U24: Marcela Soares Ferreira | V24: SEI
A25: 9437.084/24 | B25: 9437084 | C25: 2320.01.0012016/2024-30 | D25: AMAZÔNIA INDÚSTRIA E COMÉRCIO LTDA. | E25: Aquisição de lanche de doador LOTES 03 E 09 | F25: Não | H25: 2024-08-27 | I25: 2029-08-26 | J25: - | L25: 08 | M25: 2025 | N25: - | O25: 896500 | P25: T.GSA T.GSA.SUP | R25: Lorena Prezotti Rodrigues | S25: Juliana Pessoa Pinheiro de Azevedo | T25: Marcela Soares Ferreira | U25: Júlia Carolina Soares | V25: SEI
A26: 9361.880/22 | B26: 9361880 | C26: 2320.01.0009734/2022-55 | D26: Ambientalis Análises de Ambientes Ltda EPP - | E26: Prestação de serviço de análise da qualidade do ar proveniente dos sistemas de climatização do Hemocentro de Belo Horizonte. | F26: Não | H26: 2022-12-02 | I26: 2027-12-01 | J26: 2024-12-02 | K26: 2025-12-01 | L26: 12 | M26: 2025 | N26: =O26/12 -> 466.99 | O26: 5603.88 | P26: DGI.ENC | R26: João Silvestre Guimarães Gonçalves | S26: Alexandre Vitor da Silva | T26: Maycon do Vale Silva | U26: Marcela Soares Ferreira | V26: SEI
A27: 9408.763/24 | B27: 9408763 | C27: 2320.01.0013783/2023-48 | D27: Ambientalis Análises de Ambientes Ltda. | E27: Prestação de serviço de monitoramento da qualidade do ar no CETEBIO da Fundação Hemominas. | F27: Não | H27: 2024-01-27 | I27: 2029-04-26 | J27: 2025-01-27 | K27: 2025-04-26 | L27: 04 | M27: 2025 | N27: =O27/12 -> 3551.466667 | O27: 42617.6 | P27: CETEBIO.G. EXECUTIVA | R27: Maria Lúcia Soares de Moura | S27: André Rolim Belisário | T27: Emilene Gomes e Silva | U27: Marcela Soares Ferreira | V27: SEI
A28: 9324.056/22 | B28: 9324056 | C28: 2320.01.0010616/2021-09 | D28: Ambiente Ar Condicionado Eireli | E28: Prestação de serviço de manutenção preventiva e corretiva de equipamentos de ar condicionado do Hemonúcleo de São João Del Rei, incluindo fornecimento de peças. | F28: Não | H28: 2022-02-25 | I28: 2027-02-24 | J28: 2025-02-25 | K28: 2026-02-24 | L28: 02 | M28: 2026 | N28: =O28/12 -> 1898.333333 | O28: 22780 | P28: SJR.A.MAT | R28: Adauto Rocha dos Santos | S28: Tânia Mara da Silveira Santos | T28: Marisa de Lima Marques Nogueira | U28: Renata Azzi Júdice | V28: SEI
A29: 9459.809/25 | B29: 9459809 | C29: 2320.01.0008283/2024-38 | D29: Ambiente Ar Condicionado Ltda. | E29: Manutenção dos equipamentos de ar condicionado do Hemocentro de Montes Claros. | F29: Não | H29: 2025-04-11 | I29: 2035-04-10 | L29: 04 | M29: 2030 | O29: 261340 | P29: MOC.GAD | R29: Daniel Nascimento Salgado | S29: Emanuelle Aparecida Bruzinga Machado | T29: Marcela Soares Ferreira | V29: SEI
A30: 9459.556/25 | B30: 9459556 | C30: 2320.01.0008477/2024-38 | D30: Amplie Assessoria em Licitações Ltda. | E30: Prestação de serviços de licença de software windows. | F30: Não | H30: 2025-04-08 | L30: 04 | M30: 2026 | O30: 45000 | P30: I.GTC.ITS | R30: Fabrine Juliana Fabricio Costa | S30: Daniel Eustáquio Coutinho | T30: Marcela Soares Ferreira | V30: SEI
A31: 9317.954/21 | B31: 9317954 | C31: 2320.01.0016981/2021-38 | D31: Analítica Ltda | E31: Aquisição de reagente para imuno-hematologia (Bromelina, lote 1) e detergente alcalino (lote 9). | F31: Não | H31: 2021-12-29 | I31: 2026-12-28 | J31: 2024-12-29 | K31: 2025-12-28 | L31: 12 | M31: 2025 | N31: - | O31: 49000 | P31: T.GLA.CSI T.GLA.CIH.DOA | R31: Mary Cristiany Silva Menezes | S31: Dirceu Albino Junior | T31: Renata Azzi Júdice | U31: Marisa de Lima Marques Nogueira | V31: SEI
A32: 9261.668/20 | B32: 9261668 | C32: 2320.01.0007269/2020-74 | D32: Apolo Refrigeração Ltda | E32: Prestação de serviço de manutenção em equipamentos de refrigeração, com fornecimento de peças. | F32: Não | H32: 2020-11-04 | I32: 2025-11-03 | J32: 2024-11-04 | K32: 2025-11-03 | L32: 11 | M32: 2025 | O32: 264.603,01 | P32: DGI.ENC | R32: Thiago Euzébio dos Santos | S32: Alexandre Vitor da Silva | V32: SEI
A33: 9287.970/21 | B33: 9287970 | C33: 2320.01.0010249/2021-24 | D33: Apolo Refrigeração Ltda | E33: Prestação de serviço de manutenção preventiva e corretiva, e higienização do sistema de ar condicionado do CETEBIO - Lagoa Santa (Lote 01). | F33: Não | H33: 2021-08-04 | I33: 2026-08-03 | J33: 2024-08-04 | K33: 03/08/2025 | L33: 08 | M33: 2025 | N33: =O33/12 -> 29639.2175 | O33: 355670.61 | P33: CETEBIO.G. EXECUTIVA | Q33: Maria Lúcia Soares de Moura | R33: Maria Lúcia Soares de Moura | S33: Antônio Ferreira de Oliveira Filho | T33: Marcela Soares Ferreira | U33: Adriana Aparecida Tavares Diniz | V33: SEI
A34: 9393.609/23 | B34: 9393609 | C34: 2320.01.0001032/2022-75 | D34: Apolo Refrigeração Ltda | E34: Prestação de serviços de Manutenção preventiva e corretiva em equipamentos de ar condicionado, com fornecimento de peças para o Hemocentro Regional de Uberlândia da Fundação Hemominas. | F34: Não | H34: 2023-09-30 | I34: 2028-09-29 | J34: 2024-09-30 | K34: 2025-09-29 | L34: 09 | M34: 2025 | N34: 14251.35917 | O34: 171016.31 | P34: GAD.UDI | R34: Márcia Regina Luis | S34: Renata Léa Silva Souza | T34: Marcela Soares Ferreira | U34: Marisa de Lima Marques Nogueira | V34: SEI
A35: 9277.444/21 | B35: 9277444 | C35: 2320.01.0016318/2020-94 | D35: Apolo Refrigeração Ltda - EPP | E35: Prestação de serviço de manutenção preventiva e corretiva em ar condicionado split de janela, incluindo fornecimento de peças. | F35: Não | H35: 2021-05-05 | I35: 2026-05-04 | J35: 2025-05-05 | K35: 2026-05-04 | L35: 05 | M35: 2026 | N35: 5657.071667 | O35: 67884.86 | P35: DGI.ENC | Q35: Thiago Euzébio dos Santos | R35: Thiago Euzébio dos Santos | T35: Adriana Aparecida Tavares Diniz | U35: Dallila Rodrigues Júlia | V35: SEI
A36: 9321.239/22 | B36: 9321239 | C36: 2320.01.0011069/2021-97 | D36: Apolo Refrigeração Ltda - ME | E36: Prestação de serviço de manutenção de ar condicionado e limpeza da rede de dutos. | F36: Não | H36: 2022-02-03 | I36: 2027-02-02 | J36: 2025-02-03 | K36: 2026-02-02 | L36: 02 | M36: 2026 | N36: 6871.8975 | O36: 82462.77 | P36: GAD.SLA | R36: Marco Paulo Dias Canabrava | S36: Neide Aparecida dos Santos Reis Gonçalvez | T36: Marisa de Lima Marques Nogueira | U36: Renata Azzi Júdice | V36: SEI
A37: 9430.426/24 | B37: 9430426 | C37: 2320.01.0009813/2023-53 | D37: Apolo Refrigeração Ltda - ME | E37: Prestação de Serviço de Manutenção e Limpeza em Sistema de Ar Condicionado, no Centro de Tecidos Biológicos - CETEBIO, da Fundação Hemominas, que deve ser executado conforme condições do Termo de Referência (87663842) | F37: Não | H37: 2024-07-01 | I37: 2029-06-30 | J37: 2025-07-01 | K37: 2026-06-30 | L37: 06 | M37: 2026 | N37: 12666.48167 | O37: 151997.78 | P37: CETEBIO / G.GTTE | R37: Antônio Ferreira de Oliveira Filho | S37: Maria Lúcia Soares de Moura | T37: Maycon do Vale Silva | U37: Lizziane d'Ávila Pereira | V37: SEI
A38: 9400.368/23 | B38: 9400368 | C38: 2320.01.0004846/2023-11 | D38: Argus Científica Ltda | E38: Aquisição de reagente Ferritina com comodato. | F38: Sim | H38: 2023-11-23 | I38: 2028-11-22 | J38: 2024-11-23 | K38: 2025-11-22 | L38: 11 | M38: 2025 | N38: - | O38: 108640 | P38: HBH.T.LHEM | R38: Beatriz Nogueira de Carvalho APOSENTOU | S38: João Henrique Fonseca de Moura | T38: Lizziane d'Ávila Pereira | U38: Emilene Gomes e Silva | V38: SEI
A39: 9430.023/24 | B39: 9430023 | C39: 2320.01.0015881/2023-50 | D39: Argus Científica Ltda | E39: Aquisição de sistema analítico completo, com equipamento em comodato e reagentes ferro sérico e capacidade ligadora de ferro. | F39: Sim | H39: 2024-06-24 | I39: 2034-06-23 | J39: 2025-06-24 | K39: 2026-06-23 | L39: 06 | M39: 2026 | N39: - | O39: 85280 | P39: HBH.T.LHEM | R39: Beatriz Nogueira de Carvalho APOSENTOU | S39: João Henrique Fonseca de Moura | T39: Lizziane d'Ávila Pereira | U39: Maycon do Vale Silva | V39: SEI
A40: 9245.613/20 | B40: 9245613 | C40: 2320.01.0017803/2019-63 | D40: Associação Profisionalizante do Menor de Belo Horizonte - ASSPROM | E40: Prestação de serviço de apoio em atividades administrativas | F40: Não | H40: 2020-04-01 | I40: 2026-03-31 | J40: 2025-04-01 | K40: 2026-03-31 | L40: 03 | M40: 2026 | N40: =O40/12 -> 51768.92 | O40: 621227.04 | P40: G.GGP | Q40: Andrea Maria Almeida Medrado | R40: Erica Antunes Coelho | V40: SEI
A41: 9262.654/20 | B41: 9262654 | C41: 2320.01.0007239/2020-11 | D41: Atenas Elevadores Ltda | E41: Prestação de Serviço de manutenção preventiva e corretiva em elevador e plataforma elevatória - Unidade Uberaba | F41: Não | H41: 2020-10-02 | I41: 2025-10-01 | J41: 2024-10-02 | K41: 2025-10-01 | L41: 10 | M41: 2025 | N41: =O41/12 -> 3666.666667 | O41: 44000 | P41: GAD.URA | Q41: Thiago Euzébio dos Santos | R41: Leila Pereira | S41: Lúcia de Fátima Oliveira | T41: SOLICITAR | U41: SOLICITAR | V41: SEI
A42: 9439.966/24 | B42: 9439966 | C42: 2320.01.0014470/2024-23 | D42: Auto Serviço Santo Agostinho Ltda | E42: Aquisição gêneros alimentícios para lanche diário do doador de sangue do Hemonúcleo de São João del Rei. | F42: Não | H42: 2024-10-08 | I42: 2034-10-07 | J42: - | L42: 10 | M42: 2025 | O42: 51479.68 | P42: SJR.A.COM | R42: Adauto Rocha dos Santos (SJR.A.COM). | S42: Tânia Mara da Silveira Santos | T42: Marcela Soares Ferreira | U42: Júlia Carolina Soares | V42: SEI
A43: 9434.062/24 | B43: 9434062 | C43: 2320.01.0003406/2024-88 | D43: B & F LAVAGEM AUTOMOTIVA E PREDIAL LTDA. - ME | E43: aquisição de Serviços de higienização e limpeza dos veículos utilizados pelo HEMOMINAS | F43: Não | H43: 2024-07-31 | I43: 2025-07-30 | J43: - | L43: 07 | M43: 2025 | N43: =O43/12 -> 4370 | O43: 52440 | P43: G.GLQ.PRT.TRANSPORTE | R43: Pablo Ruas dos Santos | S43: Anastas Falcão Quirino Chaves | T43: Maycon do Vale Silva | U43: Marcela Soares Ferreira | V43: SEI
A44: 9437.071/24 | B44: 9437071 | C44: 2320.01.0004945/2024-51 | D44: Baghetti Pães e Confeitaria Eireli TERMO DE RESCISÃO A PARTIR DE 08/05/2025. PUBLICAÇÃO 24/05/2025. | E44: Aquisição de produtos alimentícios para lanche dos doadores e prestação de serviços para organização e execução de evento para Solenidade de diplomação dos Doadores de Sangue da Fundação Hemominas, Hemonúcleo de Ituiutaba. | F44: Não | H44: 2024-08-28 | I44: 2034-07-30 | J44: - | L44: 08 | M44: 2025 | O44: 81040 | P44: GAD.ITU | R44: Márcia de Freitas Borges Silva Lúcia de Fátima Oliveira | S44: Marcella Ferreira de Alcântara Verassan | T44: Marcela Soares Ferreira | U44: Júlia Carolina Soares | V44: SEI
A45: 9437.652/24 | B45: 9437652 | C45: 2320.01.0014994/2023-40 | D45: Baltazar Ribeiro Rodrigues 09314213650 - ME | E45: Prestação de Serviço de manutenção preventiva e corretiva em aparelhos de ar condicionado, incluindo fornecimento de peças - Hemonúcleo de Patos de Minas da Fundação Hemominas. | F45: Não | H45: 2024-09-23 | I45: 2029-09-22 | J45: - | L45: 09 | M45: 2025 | O45: 49685.32 | P45: PMI.GAD | R45: Nilza Canêdo de Magalhães | S45: Heleno de Lima Marques | T45: Marcela Soares Ferreira | U45: Júlia Carolina Soares | V45: SEI
A46: 9445.819/24 | B46: 9445819 | C46: 2320.01.0008959/2024-22 | D46: Barros Bittencourt Empreendimentos Ltda | E46: Prestação de Serviço de reforma e adequação em instalações prediais, estruturais e em sistema de prevenção e combate a incêndio (AVCB) da edificação do CETEBIO/HEMOMINAS em Lagoa Santa. | F46: Não | H46: 2024-12-16 | I46: 2025-12-15 | L46: 12 | M46: 2025 | O46: 594899.99 | P46: I.GIF.AQE | R46: Júlio Campos Franklin | S46: Neylor Assunção Mesquit | T46: Maycon do Vale Silva | U46: Júlia Carolina Soares | V46: SEI
A47: 9430.225/24 | B47: 9430225 | C47: 2320.01.0018020/2023-12 | D47: Becton Dickinson Indústrias Cirúrgicas Ltda | E47: Aquisição de Solução salina, kit contagem de células CD 34+, kit para citômetro de fluxo e kit calibração | F47: Não | H47: 2024-06-26 | I47: 2034-06-25 | J47: 2025-06-26 | K47: 2026-06-25 | L47: 06 | M47: 2026 | O47: 160582.76 | P47: CETEBIO | R47: Maria Lúcia Soares de Moura | S47: Thiago Jocides Arruda Batista | T47: Maycon do Vale Silva | U47: Lizziane d'Ávila Pereira | V47: SEI
A48: 9437.209/24 | B48: 9437209 | C48: 2320.01.0012355/2024-92 | D48: Beta Engenharia e Comércio Ltda - ME. | E48: Aquisição de Equipamento para sala de videoconferência - identificação: solução de videoconferência para desktop, autonomia até 20 pessoas. | F48: Não | H48: 2024-09-05 | I48: 2025-09-04 | J48: - | L48: 09 | M48: 2025 | O48: 117600 | P48: I.GTC.ITS | R48: Daniel Eustáquio Coutinho | S48: Izadalvo Ricardo de Oliveira | T48: Maycon do Vale Silva | U48: Lizziane dÁvila Pereira | V48: SEI
A49: 9437.060/24 | B49: 9437060 | C49: 2320.01.0011956/2024-98 | D49: Biocell Biotecnologia Ltda | E49: Aquisição de Corante - Identificação: Flourescente não Carcinoenico e de Enzima - Identificação TAQ DNA Polimerase Hot Start. | F49: Não | H49: 2024-08-29 | I49: 2025-08-28 | J49: - | L49: 08 | M49: 2025 | N49: - | O49: 4379.78 | P49: T.GLA.CIH | R49: Luciana Cayres Schmidt | S49: Michelle Theodoro Alves | T49: Lizziane d'Ávila Pereira | U49: Maycon do Vale Silva | V49: SEI
A50: 9442.364/24 | B50: 9442364 | C50: 2320.01.0016179/2024-52 | D50: Biocell Biotecnologia Ltda | E50: Aquisição ce corantes (Lote 04) e soro fetal bovino (Lote 11). | F50: Não | H50: 2024-12-02 | I50: 2025-12-01 | J50: - | L50: 12 | M50: 2025 | N50: - | O50: 4600 | P50: T.GLA.CSO | R50: Felipe Carlos Brito de Souza | S50: Nathália Gomide Cruz | T50: Lizziane d'Ávila Pereira | U50: Marcela Soares Ferreira | V50: SEI
A51: 9470.571/25 | B51: 9470571 | C51: 2320.01.0008902/2025-06 | D51: Biocontrol Ltda. | E51: Contratação de serviços de monitoramento da qualidade do ar nas unidades da Fundação Hemominas em Uberada e Governador Valadares (lotes 02 e 05). | F51: Não | H51: 2025-06-18 | I51: 2035-06-17 | L51: 06 | M51: 2026 | O51: 23310 | P51: DGI.ENC | R51: Felipe Garabini Antunes | S51: João Silvestre Guimarães Gonçalves | T51: Anna Luíza Leandro Fernandes Moreira | U51: Marcela Soares Ferreira | V51: SEI
A52: 9412.683/24 | B52: 9412683 | C52: 2320.01.0011232/2023-55 | D52: Biologística Soluções em Logística e Serviços Ltda | E52: Prestação de serviço de transporte de material biológico de origem humana ou animal, por via aérea e rodoviária. | F52: Não | H52: 2024-03-01 | I52: 2029-02-28 | J52: - | L52: 02 | M52: 2025 | N52: =O52/12 -> 366028.48 | O52: 4392341.76 | P52: G.GLQ | R52: Gisele de Fátima Melo | S52: Rosangela Vital de Almeida | T52: Marcela Soares Ferreira | U52: Júlia Carolina Soares | V52: SEI
A53: 9319.188/22 | B53: 9319188 | C53: 2320.01.0000684/2022-62 | D53: Biomédica Equipamentos e Suprimentos Hospitalares Ltda | E53: Aquisição de reagentes para agregação plaquetária (ADP, lote 03, item 01). | F53: Não | H53: 2022-01-25 | I53: 2027-01-24 | J53: 2025-01-25 | K53: 2026-01-24 | L53: 01 | M53: 2026 | N53: - | O53: 9280 | P53: HBH.T.LHEM | R53: Beatriz Nogueira de Carvalho APOSENTOU | S53: João Henrique Fonseca de Moura | T53: Marisa de Lima Marques Nogueira | U53: Renata Azzi Júdice | V53: SEI
A54: 9397.823/23 | B54: 9397823 | C54: 2320.01.0003862/2023-98 | D54: Biomédica Equipamentos e Suprimentos Hospitalares Ltda | E54: Prestação de serviço de Manutenção Preventiva, Corretiva e Calibração do Agregômetro Plaquetas Chronolog 700. | F54: Não | H54: 2023-11-01 | I54: 2028-10-31 | J54: 2024-11-01 | K54: 2025-10-31 | L54: 10 | M54: 2025 | N54: =O54/12 -> 6343.75 | O54: 76125 | P54: DGI.ENC | R54: Paulo José Cifuentes Gonçalves | S54: Alexandre Vitor da Silva | T54: Emilene Gomes e Silva | U54: Marisa de Lima Marques Nogueira | V54: SEI
A55: 9389.604/23 | B55: 9389604 | C55: 2320.01.0016138/2021-04 | D55: Biometrix Diagnóstica Ltda. | E55: Aquisição de Sistema analítico completo para realização de tipificação de HLA por metodologia de sequenciamento de nova geração – NGS. | F55: Sim | H55: 2023-07-04 | I55: 2028-07-03 | J55: 2024-07-04 | K55: 2025-07-03 | L55: 07 | M55: 2025 | N55: - | O55: 7154450 | P55: T.GLA.HLA | R55: Felipe Carlos Brito de Souza | S55: Luciana Lara Viegas da Aparecida | T55: Marisa de Lima Marques Nogueira | U55: Marcela Soares Ferreira | V55: SEI
A56: 9392.802/23 | B56: 9392802 | C56: 2320.01.0012180/2023-67 | D56: Biometrix Diagnóstica Ltda. | E56: Aquisição de Insumos e reagentes necessário para tipificação HLA (média/alta resolução) de amostras de Doadores e Receptores de Medula Óssea (lotes 03 e 04). | F56: Não | H56: 2023-08-25 | I56: 2028-08-24 | J56: 2024-08-25 | K56: 2025-08-24 | L56: 08 | M56: 2025 | N56: - | O56: 97626.6 | P56: T.GLA.HLA | R56: Felipe Carlos Brito de Souza | S56: Luciana Lara Viegas da Aparecida | T56: Marcela Soares Ferreira | U56: Marisa de Lima Marques Nogueira | V56: SEI
A57: 9442.479/24 | B57: 9442479 | C57: 2320.01.0016181/2024-95 | D57: Biometrix Diagnóstica Ltda. | E57: Aquisição de kit para genotipagem de genes (lote 12). | F57: Não | H57: 2024-12-09 | I57: 2025-12-08 | J57: - | L57: 12 | M57: 2025 | N57: - | O57: 86443.2 | P57: T.GLA.HLA | R57: Felipe Carlos Brito de Souza | S57: Nathália Gomide Cruz | T57: Lizziane d'Ávila Pereira | U57: Marcela Soares Ferreira | V57: SEI
A58: 9445.649/24 | B58: 9445649 | C58: 2320.01.0010119/2024-33 | D58: Biosave - Diagnóstica Ltda - EPP. | E58: Aquisição de antígeno de VDRL | F58: Não | H58: 2024-12-16 | I58: 2034-12-15 | L58: 12 | M58: 2025 | O58: 1575 | P58: T.GLA.CSO | R58: Sônia Mara Nunes da Silva | S58: Leonardo Antonio Renna Batalha | T58: Lizziane d'Ávila Pereira | U58: Marcela Soares Ferreira | V58: SEI
A59: 9459.553/25 | B59: 9459553 | C59: 2320.01.0005167/2025-68 | D59: Biosave - Diagnóstica Ltda - EPP. | E59: Aquisição de tubos e ponteiras (Lote 03). | F59: Não | H59: 2025-04-04 | I59: 2035-04-03 | L59: 04 | M59: 2026 | O59: 38745 | P59: T.GLA | R59: João Paulo dos Santos Barbosa | T59: Marcela Soares Ferreira | V59: SEI
A60: 9447.087/24 | B60: 9447087 | C60: 2320.01.0004984/2024-65 | D60: BMA Comércio de Produtos Aromáticos e Locação de Equipamentos Eletroeletrônicos Ltda | E60: Prestação de Serviço de purificação, desinfecção e aromatização de banheiros (com equipamentos em comodato), para o Hemocentro de Belo Horizonte da Fundação Hemominas. | F60: Sim | H60: 2024-12-27 | I60: 26/12/2034 (COTEP) | L60: 12 | M60: 2025 | O60: 29640 | P60: HBH.A.SGS | R60: Hamilton Silva | T60: Kele Adriane de Rezende | U60: Maycon do Vale Silva | V60: SEI
A61: 9388.815/23 | B61: 9388815 | C61: 2320.01.0004662/2022-35 | D61: BR Life LCC representada pela empresa Biometrix Diagnóstica Ltda. | E61: Aquisição de kits reagentes de histocompatibilidade, com cessão de equipamentos em comodato. | F61: Sim | H61: 2023-06-20 | I61: 2028-06-19 | J61: 2024-06-20 | K61: 2025-06-19 | L61: 06 | M61: 2025 | N61: - | O61: 5196910.68 | P61: T.GLA.HLA | R61: Felipe Carlos Brito de Souza | S61: Nathália Gomide Cruz | T61: Marisa de Lima Marques Nogueira | U61: Marcela Soares Ferreira | V61: SEI
A62: 9434.090/24 | B62: 9434090 | C62: 2320.01.0002049/2024-61 | D62: BRASOFTWARE INFORMÁTICA LTDA. | E62: Subscrições de licenças do software Adobe Creative Cloud for Teams Complete | F62: Não | H62: 2024-08-05 | I62: 2034-08-04 | J62: - | L62: 08 | M62: 2025 | N62: =O62/12 -> 3992.941667 | O62: 47915.3 | P62: I.GTC.ADS | R62: Renato Vianna do Valle Júnior | S62: Luciene Aparecida Nogueira Queiroz | T62: Maycon do Vale Silva | U62: Marcela Soares Ferreira | V62: SEI
A63: 9332.206/22 | B63: 9332206 | C63: 2320.01.0011584/2021-63 | D63: Bravo Ar Service Comércio Máquinas e Equipamentos Ltda | E63: Prestação de serviço de manutenção preventiva e corretiva em aparelho de ar condicionado do Hemocentro Regional de Uberaba, da Fundação Hemominas. | F63: Não | H63: 2022-04-29 | I63: 2027-04-28 | J63: 2025-04-29 | K63: 2026-04-28 | L63: 04 | M63: 2026 | N63: =O63/12 -> 8694.335 | O63: 104332.02 | P63: GAD.URA | R63: Leila Pereira | S63: Lúcia de Fátima Oliveira | T63: Marisa de Lima Marques Nogueira | V63: SEI
A64: 9445.828/24 | B64: 9445828 | C64: 2320.01.0017329/2024-42 | D64: Brumadinho Papel e Comércio Ltda - ME | E64: Aquisição de materiais de limpeza para atender a demanda das Unidades da Fundação Hemominas (Lotes 11 e 14). | F64: Não | H64: 2024-12-16 | I64: 2025-12-15 | L64: 12 | M64: 2025 | N64: - | O64: 17699.6 | P64: DGI.NZL | R64: Marcelo de Aguiar Gomes | S64: Nilza de Melo Pereira | T64: Marcela Soares Ferreira | U64: Lizziane d'Ávila Pereira | V64: SEI
A65: 9440.837/24 | B65: 9440837 | C65: 2320.01.0004045/2024-04 | D65: C & D indústria e Comércio de Alimentos Ltda - EPP | E65: Aquisição de produtos e insumos que compõem o lanche diário do Doador Voluntário de Sangue e para a Semana Nacional do Doador de Sangue, aquisição de adoçantes para servidores e doadores, contratação da prestação de fornecimento de gêneros alimentícios e coffee break para a comemoração ao Dia do Paciente, em Montes Claros. | F65: Não | H65: 2024-10-25 | I65: 2034-10-24 | J65: - | L65: 10 | M65: 2025 | N65: - | O65: 145292.68 | P65: MOC.GAD | R65: Daniel Nascimento Salgado | S65: Rodney Araújo Viana | T65: Marcela Soares Ferreira | U65: Lizziane d'Ávila Pereira | V65: SEI
A66: 9373.618/23 | B66: 9373618 | C66: 2320.01.0012369/2022-11 | D66: C M Pingo Ar Condicionado | E66: Prestação de serviço de manutenção preventiva e corretiva em aparelhos de ar condicionado, incluindo fornecimentos de peças para o Hemonúcleo de Ituiutaba da Fundação Hemominas. | F66: Não | H66: 2023-03-03 | I66: 2028-03-02 | J66: 2025-03-03 | K66: 2026-03-02 | L66: 03 | M66: 2026 | N66: =O66/12 -> 6265.743333 | O66: 75188.92 | P66: GAD.ITU | R66: Márcia Regina Luís | S66: Renata Léa Silva Souza | T66: Marcela Soares Ferreira | U66: Dallila Rodrigues Júlia | V66: SEI
A67: 9374.623/23 | B67: 9374623 | C67: 2320.01.0012728/2022-18 | D67: C M Pingo Ar Condicionado | E67: Prestação de serviço de manutenção preventiva e corretiva em aparelhos de ar condicionado para o Hemonúcleo de Divinópolis da Fundação Hemominas. | F67: Não | H67: 2023-03-03 | I67: 2028-03-02 | J67: 2025-03-03 | K67: 2026-03-02 | L67: 03 | M67: 2026 | N67: =O67/12 -> 4346.0975 | O67: 52153.17 | P67: GAD.DIV | R67: Nilba Valéria Pinheiro de Oliveira | S67: Nayara Suélem Silva | T67: Maycon do Vale Silva | U67: Marcela Soares Ferreira | V67: SEI
A68: 9309.045/21 | B68: 9309045 | C68: 2320.01.0000257/2021-51 | D68: CAB Tecnologia e Sistemas Comércio Ltda. | E68: Prestação de serviço de outsourcing de impressão. | F68: Não | H68: 2021-11-20 | I68: 2026-11-19 | J68: 2024-11-20 | K68: 2025-11-19 | L68: 11 | M68: 2025 | N68: =O68/12 -> 134943.75 | O68: 1619325 | P68: I.GTC.ITS | R68: Fabrine Juliana Fabricio Costa | S68: Ademar José Vieira | T68: Renata Azzi Júdice | U68: Marisa de Lima Marques Nogueira | V68: SEI
A69: 9316.151/21 | B69: 9316151 | C69: 2320.01.0013685/2020-84 | D69: Caldas Extintores e Equipamentos Contra Incêndio Eireli | E69: Prestação de serviço de manutenção dos sistemas de prevenção e combate a incêndio e pânico das Unidades da Fundação Hemominas - Uberlândia (lote 07). | F69: Não | H69: 2022-01-07 | I69: 2027-01-06 | J69: 2025-01-07 | K69: 2026-01-06 | L69: 01 | M69: 2026 | N69: =O69/12 -> 815.0033333 | O69: 9780.04 | P69: UDI.A.COM | R69: Renata Léa Silva Souza | S69: Márcia Regina Luis | T69: Marisa de Lima Marques Nogueira | U69: Renata Azzi Júdice | V69: SEI
A70: 9396.909/23 | B70: 9396909 | C70: 2320.01.0005396/2023-02 | D70: CEI Comércio Exportação Importação de Material Médico Ltda | E70: Prestação de serviço de locação de equipamentos de redução de patógenos (Lote 02) | F70: Não | H70: 2023-11-10 | I70: ANUÊNCIA SOLICITADA EM 27/03/25 09/11/20027 | J70: 10/11/2024 | K70: 09/11/20025 | L70: 11 | M70: 2025 | N70: =O70/12 -> 33000 | O70: 396000 | P70: T.GCQ DGI.ENC | R70: Dayseanne Rodrigues Tomaz | S70: Paulo José Cifuentes Gonçalves; | T70: Marisa de Lima Marques Nogueira | U70: Lizziane d´Ávila Pereira | V70: SEI
A71: 9438.029/24 | B71: 9438029 | C71: 2320.01.0014026/2024-80 | D71: CEI - Comércio Exportação e Importação de Materiais Médicos Ltda. | E71: Aquisição de filtros para remoção de leucócitos em concentrado de plaquetas (Lote 03). | F71: Não | H71: 2024-10-07 | I71: 2034-10-06 | J71: - | L71: 10 | M71: 2025 | N71: - | O71: 32480 | P71: T.GCQ | R71: Roberto Mauro Ferreira Silva (T.GCQ) | T71: Lizziane d'Ávila Pereira | U71: Thais Helena Parizzi Saraiva | V71: SEI
A72: 9446.062/24 | B72: 9446062 | C72: 2320.01.0017801/2024-05 | D72: CEI - Comércio Exportação e Importação de Materiais Médicos Ltda. | E72: Aquisição de equipamentos técnicos: seladora para bolsa de sangue. | F72: Não | H72: 2024-12-20 | I72: 2025-12-19 | L72: 12 | M72: 2025 | O72: 138915 | P72: DGI.ENC DGI.ENC.CAT | R72: Asaph Calazans Mendes de Souza | S72: Manoel Ricardo Caires Fernandes | T72: Maycon do Vale Silva | U72: Júlia Carolina Soares | V72: SEI
A73: 9459.868/25 | B73: 9459868 | C73: 2320.01.0013884/2024-34 | D73: CEI - Comércio Exportação e Importação de Materiais Médicos Ltda. | E73: Aquisição de dispositivo estéril para transferência e coleta de amostras de concentrados de plaquetas (CP) em sistema fechado. | F73: Não | H73: 2025-04-11 | I73: 2035-04-10 | L73: 04 | M73: 2026 | O73: 675000 | P73: T.GCQ | R73: Luciana de Souza Madeira Ferreira Boy | S73: Ana Paula de Morais | T73: Marcela Soares Ferreira | V73: SEI
A74: 9372.092/23 | B74: 9372092 | C74: 2320.01.0016836/2022-70 | D74: Celasa Análises Ltda - ME | E74: Prestação de serviços de análise e monitoramento da qualidade da água nas edificações utilizadas pela Fundação Hemominas (Lote 01). | F74: Não | H74: 2023-03-16 | I74: 2028-03-15 | J74: 2025-03-16 | K74: 2026-03-15 | L74: 03 | M74: 2026 | N74: 1484.166667 | O74: 17810 | P74: I.GIF.AQE | R74: Jéssica Rodrigues Barbosa | S74: Silvana Rodrigues dos Santos Rocha | T74: Maycon do Vale Silva | U74: Marcela Soares Ferreira | V74: SEI
A75: 9434.240/24 | B75: 9434240 | C75: 2320.01.0001605/2024-21 | D75: Celasa Análises Ltda - ME | E75: Prestação de serviços de coleta e análise do efluente oriundo do Hemocentro Regional de Juiz de Fora. | F75: Não | H75: 2024-08-06 | I75: 2034-08-05 | J75: - | L75: 08 | M75: 2025 | N75: 633.3333333 | O75: 7600 | P75: GAD.JFO | R75: Victor Valente Campos | S75: Fernando dos Santos Henriques | T75: Maycon do Vale Silva | U75: Lizziane d'Ávila Pereira | V75: SEI
A76: 9434.231/24 | B76: 9434231 | C76: 2320.01.0007141/2024-26 | D76: CEMIG Distribuição S/A | E76: o estabelecimento das condições, procedimentos, direitos e obrigações das PARTES que regularão a conexão das instalações da unidade de consumo do ACESSANTE ao SISTEMA DE DISTRIBUIÇÃO operado pela CEMIG D e o uso desse SISTEMA DE DISTRIBUIÇÃO pelo ACESSANTE em sua unidade inscrita no CNPJ/MF nº 26.388.330/0001-90, Inscrição Estadual nº 062779821-0031, na Alameda Ezequiel Dias nº 321, Bairro Centro, Município de Belo Horizonte, Minas Gerais, na tensão contratada de 220 V, em rede subterrânea | F76: Não | H76: 2024-08-06 | L76: 08 | M76: 2025 | O76: 1052015.35 | P76: HBH.A.MPR | R76: Douglas Augusto Rodrigues Pereira | S76: Paula Maria Leão Mendes Roenick | T76: Maycon do Vale Silva | U76: Marcela Soares Ferreira | V76: SEI
A77: 9434.213/24 | B77: 9434213 | C77: 2320.01.0004285/2024-23 | D77: CEMIG Distribuição S/A | E77: o estabelecimento das condições, procedimentos, direitos e obrigações das PARTES que regularão a conexão das instalações da unidade de consumo do ACESSANTE ao SISTEMA DE DISTRIBUIÇÃO operado pela CEMIG D e o uso desse SISTEMA DE DISTRIBUIÇÃO pelo ACESSANTE em sua unidade inscrita no CNPJ/MF nº 26.388.330/0001-90, Inscrição Estadual nº 0627798210031, na Av Levino De Souza 1845 CO, Bairro Umuarama, Município de UBERLANDIA, Estado de Minas Gerais, na tensão contratada de 13,8 kV | F77: Não | H77: 2024-08-06 | I77: 2034-08-05 | L77: 08 | M77: 2025 | O77: 54500 | P77: UDI.A.COM | R77: Márcia Regina Luis | S77: Renata Léa Silva Souza | T77: Maycon do Vale Silva | U77: Marcela Soares Ferreira | V77: SEI
A78: 9441.722/24 | B78: 9441722 | C78: 2320.01.0009885/2024-46 | D78: CEMIG Distribuição S/A | E78: o estabelecimento das condições, procedimentos, direitos e obrigações das PARTES que regularão a conexão das instalações da unidade de consumo do ACESSANTE ao Sistema de Distribuição operado pela CEMIG D e o uso desse Sistema de Distribuição pelo ACESSANTE em sua unidade inscrita no CNPJ/MF nº 26.388.330/0001-90, Inscrição Estadual nº 0627798210031, na RUA GOIABEIRAS, 779, Bairro INDUSTRIAL, situada no Município de LAGOA SANTA, Estado de Minas Gerais, na tensão contratada de 13,8 kV. | F78: Não | H78: 2024-12-04 | J78: - | K78: INDETERMINADA | N78: 39781.35 | O78: 477376.27 | P78: CETEBIO | R78: Maria Lúcia Soares de Moura | T78: Kele Adriane Rezende | U78: Marcela Soares Ferreira | V78: SEI
A79: 9443.388/24 | B79: 9443388 | C79: 2320.0009009/2024-30 | D79: CEMIG Distribuição S/A | E79: o estabelecimento das condições, procedimentos, direitos e obrigações das PARTES que regularão a conexão das instalações da unidade de consumo do ACESSANTE ao Sistema de Distribuição operado pela CEMIG D e o uso desse Sistema de Distribuição pelo ACESSANTE em sua unidade inscrita no CNPJ/MF nº 26.388.330/0002-70, na RUA URBINO VIANA, 640 HP, Bairro CIDADE SANTA MARIA, situada no Município de MONTES CLAROS, Estado de Minas Gerais, na tensão contratada de 13,8 kV. | F79: NÃO | H79: 2024-12-04 | J79: - | K79: INDETERMINADA | N79: 25253.21 | O79: 303038.52 | P79: MOC.A.COM | R79: Gasparina Meurelle Santos Chaves | T79: Kele Adriane Rezende | U79: Marcela Soares Ferreira | V79: SEI
A80: 9440.024/24 | B80: 9440024 | C80: 2320.01.0009521/2024-77 | D80: CEMIG Distribuição S/A | E80: o estabelecimento das condições, procedimentos, direitos e obrigações das PARTES que regularão a conexão das instalações da unidade de consumo do ACESSANTE ao Sistema de Distribuição operado pela CEMIG D e o uso desse Sistema de Distribuição pelo ACESSANTE em unidade inscrita no CNPJ/MF nº 26.388.330/0004-32, na AV DOS ANDRADAS , 266, Bairro CENTRO, situada no Município de JUIZ DE FORA, Estado de Minas Gerais, na tensão contratada de 22 kV. | F80: Não | H80: 2024-12-04 | J80: - | K80: INDETERMINADA | N80: 26744.27 | O80: 320931.24 | P80: JFO.A.MEQ | R80: Victor Valente Campos | S80: Fernando dos Santos Henriques | T80: Marcela Soares Ferreira | U80: Júlia Carolina Soares | V80: SEI
A81: 9442.145/24 | B81: 9442145 | C81: 2320.01.0008465/2024-71 | D81: CEMIG Distribuição S/A | E81: o estabelecimento das condições, procedimentos, direitos e obrigações das PARTES que regularão a conexão das instalações da unidade de consumo do ACESSANTE ao Sistema de Distribuição operado pela CEMIG D e o uso desse Sistema de Distribuição pelo ACESSANTE em sua unidade inscrita no CNPJ/MF nº 26.388.330/0003-51, na RUA RUI BARBOSA 149 HP, Bairro CENTRO, situada no Município de GOVERNADOR VALADARES, Estado de Minas Gerais, na tensão contratada de 13,8 kV. | F81: Não | H81: 2024-12-04 | J81: - | K81: INDETERMINADA | N81: 23404.09 | O81: 280849.14 | P81: GOV.GAD | R81: Bruno Sousa Macedo | S81: Deivandro Lessa | T81: Maycon do Vale Silva | U81: Lizziane d´Ávila Pereira | V81: SEI
A82: 9440.721/24 | B82: 9440721 | C82: 2320.01.0007726/2024-42 | D82: Central Eto de Esterilização Ltda. | E82: Prestação de serviço de processamento esterilização e reesterilização de materiais médico-hospitalares do CETEBIO. | F82: Não | H82: 2024-10-24 | I82: 2034-10-23 | J82: - | K82: 2025-10-23 | L82: 10 | M82: 2025 | N82: - | O82: 175984.71 | P82: GAD.CETEBIO | R82: Maria Lúcia Soares de Moura | S82: Jucélia Schittini da Silva Morais | T82: Marcela Soares Ferreira | U82: Lizziane d´Ávila Pereira | V82: SEI
A83: 9402.637/23 | B83: 9402637 | C83: 2320.01.0011945/2023-10 | D83: Certifique Soluções Ltda. | E83: Prestação de serviço de certificação da sala limpa (sala de procedimentos e antecâmara) ISO Classe 7 do Banco de Tecidos. | F83: Não | H83: 2023-12-14 | I83: COTEPE | J83: 2024-12-14 | K83: 2025-12-13 | L83: 12 | M83: 2025 | N83: =O83/12 -> 583.3333333 | O83: 7000 | P83: GAD.CETEBIO | R83: Antônio Ferreira de Oliveira Filho | S83: Maria Lúcia Soares de Moura | T83: Emilene Gomes e Silva | U83: Marcela Soares Ferreira | V83: SEI
A84: 9396.908/23 | B84: 9396908 | C84: 2320.01.0005396/2023-02 | D84: CERUS Corporation e Medical Technologies Innovators, Inc representadas pela empresa CEI Comércio Exportação Importação de Material Médico Ltda. | E84: Aquisição de kits descartáveis de reagentes para redução de patógenos (Lote 01) | F84: Não | H84: 2023-11-09 | I84: AVISO EMITIDO EM 27/03/25 08/11/2027 | J84: 2024-11-09 | K84: 2025-11-08 | L84: 11 | M84: 2025 | N84: - | O84: 9093600 | P84: T.GCQ | R84: Flávia Naves Givisiez | S84: Gabriela Coelho de Rezende | T84: Marisa de Lima Marques Nogueira | U84: Lizziane d´Ávila Pereira | V84: SEI
A85: 9470.315/25 | B85: 9470315 | C85: 2320.01.0007667/2025-80 | D85: Cetus Construtora Ltda. | E85: Serviços comuns de engenharia (manutenção predial) Lote 04. | F85: Não | G85: SIM doc. nº 117237016 | H85: 2025-06-11 | I85: 2030-06-10 | L85: 06 | M85: 2026 | O85: 980983.65 | P85: I.GIF.MPR | R85: Douglas Augusto Rodrigues Pereira | S85: Neylor Assunção Mesquit | T85: Anna Luíza Leandro Fernandes Moreira | U85: Marcela Soares Ferreira | V85: SEI
A86: 9386.448/23 | B86: 9386448 | C86: 2320.01.0003667/2023-28 | D86: Chavek Ltda - ME | E86: Prestação de serviço de confecção de chaves não ornamentais. | F86: Não | H86: 2023-05-24 | I86: COTEP | J86: 2025-05-24 | K86: 2026-05-23 | L86: 05 | M86: 2026 | N86: =O86/12 -> 144.6666667 | O86: 1736 | P86: DGI.NZL | R86: Marcelo de Aguiar Gomes | S86: Maria Beatriz Souza Melo Sarsur | T86: Marcela Soares Ferreira | U86: Marisa de Lima Marques Nogueira | V86: SEI
A87: 9458.477/25 | B87: 9458477 | C87: 2320.01.0004623/2025-12 | D87: Citopharma Manipulação de Medicamentos Especiais Ltda. | E87: Aquisção de meio de cultura e glicerina para o CETEBIO. | F87: Não | H87: 2025-03-25 | I87: COTEP | L87: 03 | M87: 2026 | O87: 26246.56 | P87: CETEBIO | R87: Maria Lúcia Soares de Moura | S87: Jucélia Schittini da Silva Morais | T87: Lizziane d'Ávila Pereira | U87: Marcela Soares Ferreira | V87: SEI
A88: 9402.584/23 | B88: 9402584 | C88: 2320.01.0016919/2023-57 | D88: Claro S/A | E88: contratação de serviço de telefonia fixa comutada - Link E1 - Regiões 01, 03, 06 e 09, local, fixo-fixo, fixo móvel, DDR, instalação ou transferência, e serviço de telefonia fixa comutada - LDN (Longa Distância Nacional, fixo-fixo, fixo móvel, lotes 01, 03, 06, 09 e 14 | F88: Não | H88: 2023-12-27 | I88: 2028-12-26 | J88: 2024-12-27 | K88: 2025-12-26 | L88: 12 | M88: 2025 | N88: =O88/12 -> 8883.561667 | O88: 106602.74 | P88: I.GTC.ITS | R88: Daniel Eustáquio Coutinho | S88: Fabrine Juliana Fabrício Costa | T88: Marisa de Lima Marques Nogueira | U88: emilene Gomes e Silva | V88: SEI
A89: 9261.244/20 | B89: 9261244 | C89: 2320.01.0006165/2020-06 | D89: CMG Diagnóstica Ltda | E89: Prestação de serviço de manutenção em analisador de células Sysmex XN 1000. | F89: Não | H89: 2020-08-29 | I89: 2025-08-28 | J89: 2024-08-29 | K89: 2025-08-28 | L89: 08 | M89: 2025 | N89: =O89/12 -> 10596.47333 | O89: 127157.68 | P89: DGI.ENC | Q89: Antônio Ferreira de Oliveira Filho | R89: Antônio Ferreira de Oliveira Filho | V89: SEI
A90: 9293.896/21 | B90: 9293896 | C90: 2320.01.0009442/2021-85 | D90: CMG Diagnóstica Ltda | E90: Aquisição de reagentes para o contador hematológico SYSMEX XN1000. | F90: Não | H90: 2021-10-29 | I90: 2026-10-28 | J90: 2024-10-29 | K90: 2025-10-28 | L90: 10 | M90: 2025 | N90: - | O90: 94496.08 | P90: GAD.CETEBIO | R90: Maria Lúcia Soares de Moura | S90: Thiago Jocides Arruda Batista | T90: Renata Azzi Júdice | U90: Marisa de Lima Marques Nogueira | V90: SEI
A91: 9344.153/22 | B91: 9344153 | C91: 2320.01.0001510/2022-70 | D91: Companhia de Saneamento de Minas Gerais - COPASA MG | E91: Prestação de serviço de Recebimento e Tratamento dos efluentes líquidos domésticos e não domésticos - Programa Precend - Copasa MG (Alameda Ezequiel Dias, 321, Bairro Santa Efigênia, Belo Horizonte/MG). | F91: Não | J91: 2022-08-23 | L91: 08 | M91: 2027 | N91: =O91/12 -> 105.55 | O91: 1266.6 | P91: HBH.A.MPR | R91: Douglas Augusto Rodrigues Pereira | S91: Jéssica Rodrigues Barbosa | T91: Marisa de Lima Marques Nogueira | U91: Adriana Aparecida Tavares Diniz | V91: SEI
A92: 9446.061/24 | B92: 9446061 | C92: 2320.01.0009643/2024-81 | D92: Confeitaria Salles Ltda | E92: Aquisição de gêneros alimentícios para o lanche do doador para o Hemonúcleo de Manhuaçu (Lotes 01 e 02). | F92: Não | H92: 2024-12-20 | I92: 2034-12-19 | L92: 12 | M92: 2025 | O92: 67199.6 | P92: GAD.MÇU | R92: Maria José Moreira | S92: Gulliver Fabrício Vieira Rocha | T92: Marcela Soares Ferreira | U92: Lizziane d'Ávila Pereira | V92: SEI
A93: 9346.082/22 | B93: 9346082 | C93: 2320.01.0005915/2022-57 | D93: Consórcio Empreendedor Shopping Estação BH | E93: Locação de imóvel, sala SEB4002B, do Shopping Estação BH, situado na Av. Cristiano Machado, 11.833, Vila Clóris, Belo Horizonte/MG. | F93: Não | J93: 2022-11-15 | L93: 11 | M93: 2027 | N93: =O93/12 -> 336390.74 | O93: 4036688.88 | P93: GAD.HBH HBH.GTE | R93: Paula Maria Leão Mendes Roenick | S93: Laiz Helena Brasil Marzano | T93: Marisa de Lima Marques Nogueira | U93: Emilene Gomes e Silva | V93: SEI
A94: 9452.416/25 | B94: 9452416 | C94: 2320.01.0014277/2023-96 | D94: Construir Engenharia Ltda. | E94: Prestação de serviços de reforma do prédio da Fundação /hemominas situado na Avenida Brasil, em Belo Horizonte/MG. | F94: Não | H94: 2025-02-26 | I94: 2026-02-25 | L94: 02 | M94: 2026 | O94: 1039657.95 | P94: I.GIF.AQE | R94: Silvana Rodrigues dos Santos Rocha | S94: Júlio Campos Franklin | T94: Marcela Soares Ferreira | U94: Lizziane d'Ávila Pereira | V94: SEI
A95: 9461.840/25 | B95: 9461840 | C95: 2320.01.0006550/2025-72 | D95: Construtora Resende Barbosa | E95: Prestação de serviços de reforma dos telhados do Hemonúcleo de Divinópolis e do Hemocentro de Uberaba (lote 01 e lote 03). | F95: Não | H95: 2025-05-13 | I95: 2026-05-12 | L95: 05 | M95: 2026 | O95: 533530.34 | P95: I.GIF.AQE | R95: Silvana Rodrigues dos Santos Rocha | S95: Júlio Campos Franklin | T95: Marcela Soares Ferreira | V95: SEI
A96: 9460.420/25 | B96: 9460420 | C96: 2320.01.0010012/2024-12 | D96: Contagem I Incorporação SPE Ltda. | E96: Locação do imóvel situado à Rua Simão Antônio, n° 149 - Bairro Cincão, Contagem-MG, CEP 32371-620 - Log Contagem I. Número de registro so imóvel 113138. | F96: Não | H96: 2025-05-15 | L96: 03 | M96: 2026 | N96: 107149.21 | O96: 1285790.52 | P96: G.GLQ.PTM | R96: Vagner Luiz da Silva | S96: Moisés Patrocínio da Silva | T96: Marcela Soares Ferreira | V96: SEI
A97: 9445.122/24 | B97: 9445122 | C97: 2320.01.0012813/2022-51 | D97: Contego Consultoria Ltda | E97: Prestação de Serviço técnico especializado, consultoria e assessoria para adequação, implantação e manutenção da conformidade da Fundação Hemominas (Hemorrede e Administração Central), frente aos requisitos da Lei Geral de Proteção de Dados - LGPD, Lei 13.079 de 14 de agosto de 2018 e alterações posteriores, a ser realizado pela contratada, consistindo na elaboração, desenvolvimento, execução, implementação e implantação do projeto/programa de adequação e conformidade à LGPD, com vistas à criação do programa de governança em privacidade e proteção de dados. | F97: Não | H97: 2024-12-04 | I97: 2029-12-03 | J97: - | L97: 08 | M97: 2026 | O97: 143000 | P97: PRE.LGPD | R97: Kátia Cardoso Coelho | S97: Maressa Motta Teixeira | T97: Marcela Soares Ferreira | U97: Lizziane d'Ávila Pereira | V97: SEI
A98: 9292.254/21 | B98: 9292254 | C98: 2320.01.0009164/2021-25 | D98: CONTROL LAB CONTROLE DE QUALIDADE PARA LABORATÓRIOS LTDA | E98: Prestação de Serviços para fornecimento de programa de controle externo da qualidade (testes de proficiência) em hemocomponentes | F98: Não | H98: 2021-10-09 | I98: 2026-10-08 | J98: 2024-10-09 | K98: 2025-10-08 | L98: 10 | M98: 2025 | N98: =O98/12 -> 6334.55 | O98: 76014.6 | P98: T.GCQ | R98: Roberto Mauro Ferreira Silva | S98: Gabriela Coelho de Rezende | T98: Renata Azzi Júdice | U98: Marisa de Lima Marques Nogueira | V98: SEI
A99: 9391.558/23 | B99: 9391558 | C99: 2320.01.0006266/2023-83 | D99: Control Lab Controle de Qualidade para Laboratórios Ltda. | E99: Aquisição de kit para Citômetro de Fluxo. | F99: Não | H99: 2023-08-31 | I99: 2028-08-30 | J99: 2024-08-31 | K99: 2025-08-30 | L99: 08 | M99: 2025 | N99: - | O99: 29617.32 | P99: GAD.CETEBIO | R99: Maria Lúcia Soares de Moura | S99: Thiago Jocides Arruda Batista | T99: Marcela Soares Ferreira | U99: Marisa de Lima Marques Nogueira | V99: SEI
A100: 9410.114/24 | B100: 9410114 | C100: 2320.01.0013723/2023-19 | D100: Control Lab Controle de Qualidade para Laboratórios Ltda. | E100: Prestação de serviços de Programa de Controle Externo de Qualidade, lotes 4, 5 e 6. | F100: Não | H100: 2024-02-16 | I100: 2029-02-15 | J100: 2025-02-16 | K100: 2026-02-15 | L100: 02 | M100: 2026 | N100: =O100/12 -> 797.76 | O100: 9573.12 | P100: T.GLA T.GLA.HLA | R100: Fernando Valadares Basques | S100: Beatriz Nogueira de Carvalho | T100: Emilene Gomes e Silva | U100: Lizziane d´Ávila Pereira | V100: SEI
A101: 9450.578/25 | B101: 9450578 | C101: 2320.01.0001974/2024-49 | D101: Control Lab Controle de Qualidade para Laboratórios Ltda. | E101: Prestação de serviços de ensaio e proficiência para controle externo. | F101: Não | H101: 2025-03-25 | I101: 2035-03-24 | L101: 03 | M101: 2026 | O101: 108364.2 | P101: T.GLA | R101: Fernando Valadares Basques | S101: Milena Batista de Oliveira | T101: Marcela Soares Ferreira | U101: Lizziane d´Ávila Pereira | V101: SEI
A102: 9289.870/21 | B102: 9289870 | C102: 2320.01.0004323/2021-73 | D102: Controle Analítico Análises Técnicas Ltda | E102: Prestação de serviço de análise e monitoramento da qualidade da água de uso reagente usada nos diversos procedimentos e equipamentos dos laboratórios localizados no Hemocentro de Belo Horizonte (HBH) e CETEBIO. | F102: Não | H102: 2021-08-31 | I102: 2026-08-30 | J102: 2024-08-31 | K102: 2025-08-30 | L102: 08 | M102: 2025 | N102: =O102/12 -> 6459.3 | O102: 77511.6 | P102: DGI.ENC | R102: Wesley Rodrigues Tomaz | S102: Dirceu Alves Jácome Júnior | T102: Marisa de Lima Marques Nogueira | U102: Renata Azzi Júdice | V102: SEI
A103: 9456.598/25 | B103: 9456598 | C103: 2320.01.0015062/2024-44 | D103: Cristália Produtos Químicos Farmacêuticos Ltda. | E103: Aquisição de codeína. | F103: Não | H103: 2025-03-19 | I103: 2035-03-18 | L103: 03 | M103: 2026 | O103: 13962.96 | P103: G.GLQ.ADM.FAR. CENT | R103: Josie Fabiana Santos Simão | S103: Jennifer dos Santos Silva | T103: Lizziane d'Ávila Pereira | U103: Marcela Soares Ferreira | V103: SEI
A104: 9437.197/24 | B104: 9437197 | C104: 2320.01.0012344/2024-98 | D104: Crossing Comércio e Serviços de Tecnologia Ltda | E104: Aquisição de Equipamento para sala de videoconferência - identificação: solução de videoconferência, autonomia até 20 pessoas. | F104: Não | H104: 2024-09-16 | I104: 2025-09-15 | J104: - | L104: 09 | M104: 2025 | N104: - | O104: 33497 | P104: I.GTC.ITS | R104: Daniel Eustáquio Coutinho | S104: Izadalvo Ricardo de Oliveira | T104: Maycon do Vale Silva | U104: Lizziane d'Ávila Pereira | V104: SEI
A105: 9436.710/24 | B105: 943671 | C105: 2320.01.0015829/2023-96 | D105: CS BRASIL FROTAS S.A | E105: contratação de serviços de Locação de veículos automotores novos para transporte de pessoas e pequenas cargas, sem condutor, sem fornecimento de combustível, com quilometragem livre, com seguro total sem franquia, e com manutenção preventiva e corretiva, em atendimento às demandas dos órgãos e entidades do Poder Executivo do Estado de Minas Gerais e suas unidades, em todo território estadual, para a prestação de serviços públicos permanentes ou de longa duração. | F105: Não | H105: 2024-08-24 | I105: 2029-08-23 | J105: - | L105: 08 | M105: 2027 | N105: =O105/12 -> 458470.4483 | O105: 5501645.38 | P105: G.GLQ.PRT.TRANSPORTE | R105: Pablo Ruas dos Santos | S105: Anastas Falcão Quirino Chaves | T105: Maycon do Vale Silva | U105: Lizziane d'Ávila Pereira | V105: SEI
A106: 9346.666/22 | B106: 9346666 | C106: 2320.01.0007924/2022-37 | D106: D.I. Comércio de Peças e Serviços para Geradores Eireli - ME | E106: Prestação de serviço de manutenção preventiva e corretiva em grupo moto gerador, com fornecimento de peças. | F106: Não | H106: 2022-11-26 | I106: 2027-11-25 | J106: 2024-11-26 | K106: 2025-11-25 | L106: 11 | M106: 2025 | N106: =O106/12 -> 19657.66333 | O106: 235891.96 | P106: DGI.ENC | R106: Thiago Euzébio dos Santos | S106: Pamela Lorrana Freitas Marques | T106: Marcela Soares Ferreira | U106: Adriana Aparecida Tavares Diniz | V106: SEI
A107: 9430.232/24 | B107: 9430232 | C107: 2320.01.0010097/2023-48 | D107: D.I. COMÉRCIO DE PEÇAS E SERVIÇOS PARA GERADORES EIRELI - ME. | E107: Prestação de Serviço de locação de equipamentos de geração e distribuição de energia. | F107: Não | H107: 2024-06-25 | J107: - | L107: 06 | M107: 2028 | N107: =O107/48 -> 4199.99 | O107: 201599.52 | P107: DGI.ENC | R107: Adilson Meireles Pacheco | S107: Alexandre Vitor da Silva | T107: Lizziane d'Ávila Pereira | U107: Maycon do Vale Silva | V107: SEI
A108: 9454.453/25 | B108: 9454453 | C108: 2320.01.0003856/2025-60 | D108: Danilo Aparecido Borela EPP | E108: Aquisição de nitrogênio líquido (Lote 01). | F108: Não | H108: 2025-03-13 | I108: 2035-03-12 | L108: 03 | M108: 2026 | O108: 11592 | P108: T.GLA.CIH | R108: Luciana Cayres Schmidt | S108: Fabrizzio de Oliveira Dias | T108: Lizziane d'Ávila Pereira | U108: Marcela Soares Ferreira | V108: SEI
A109: 9437.724/24 | B109: 9437724 | C109: 2320.01.0005968/2024/75 | D109: Datacop Serviços de Digitalização e Gestão da Informação Ltda. | E109: Prestação de Serviço de digitalização, indexação, visualização e gerenciamento de documentos digitais. | F109: Não | H109: 2024-09-23 | I109: 2029-09-22 | J109: - | L109: 09 | M109: 2025 | O109: 40449 | P109: T.GLA.CIH | R109: Luciana Cayres Schmidt | S109: Felipe Carlos Brito de Souza | T109: Maycon do Vale Silva | U109: Marcela Soares Ferreira | V109: SEI
A110: 9346.205/22 | B110: 9346205 | C110: 2320.01.0006344/2022-17 | D110: Datafilme Sistemas de Imagem e Informação - Eireli | E110: Prestação de serviço de coleta, transporte, indexação, armazenagem, conservação, movimentação e gerenciamento informatizado de caixas-arquivo, contendo documentos, e de mídias micrografias originais obedecendo às normas de segurança e preservação. | F110: Não | H110: 2022-11-08 | I110: 2027-11-07 | J110: 2024-11-08 | K110: 2025-11-07 | L110: 11 | M110: 2025 | N110: =O110/12 -> 11601.89 | O110: 139222.68 | P110: G.GPO.NAC | R110: Maria Isabel Castilho Campos | S110: Valéria Christina Pinto da Silva Penna | T110: Maycon do Vale Silva | U110: Marcela Soares Ferreira | V110: SEI
A111: 9442.236/24 | B111: 9442236 | C111: 2320.01.0000765/2024-03 | D111: Datamed Ltda. | E111: Prestação de serviço de manutenção em centrífugas refrigeradas. | F111: Não | H111: 21/11/2024 | I111: 2034-11-20 | J111: - | L111: 11 | M111: 2025 | O111: 1376190.91 | P111: DGI.ENC | R111: Maycon do Vale Silva | S111: Júlia Carolina Soares | T111: Felipe Silva Teixeira | U111: Manoel Ricardo Caires Fernandes | V111: SEI
A112: 9263.187/20 | B112: 9263187 | C112: 2320.01.0016325/2020-02 | D112: Dedetizadora Ribeiro e Souza Eireli - ME | E112: Prestação de serviços de lavagem e desinfecção de reservatório de água Unidade de Pouso Alegre. | F112: Não | H112: 2020-12-17 | I112: COTEP | J112: 2024-12-17 | K112: 2025-12-16 | L112: 12 | M112: 2025 | N112: =O112/12 -> 130.5766667 | O112: 1566.92 | P112: GAD.PAL | Q112: Denise do Socorro Guimarães | R112: Denise do Socorro Guimarães | V112: SEI
A113: 9433.901/24 | B113: 9433901 | C113: 2320.01.0001989/2024-32 | D113: Delpa Engenharia e Segurança Ltda | E113: Prestação de Serviço de DE ADAPTAÇÃO DE BENS IMÓVEIS do Hemocentro de Juiz de Fora, que deve ser executado conforme condições do Termo de Referência. | F113: Não | H113: 2024-07-25 | I113: 2025-07-24 | J113: - | L113: 07 | M113: 2025 | N113: =O113/12 -> 33740.83333 | O113: 404890 | P113: I.GIF.AQE | R113: Júlio Campos Franklin | S113: Neylor Assunção Mesquit | T113: Maycon do Vale Silva | U113: Lizziane d'Ávila Pereira | V113: SEI
A114: 9389.383/23 | B114: 9389383 | C114: 2320.01.0003371/2023-66 | D114: Dhuan Comissária de Despachos Aduaneiros Ltda. | E114: Prestação de serviço de Logística Internacional, despachos aduaneiros e desembaraços alfandegários. | F114: Não | H114: 2023-06-27 | I114: 2027-06-26 | J114: 2025-06-27 | K114: 2026-06-26 | L114: 06 | M114: 2026 | N114: =O114/12 -> 10872.19667 | O114: 130466.36 | P114: G.GLQ | R114: Gisele de Fátima Melo | S114: Jefferson Ferreira Sardinha Ribeiro | T114: Marisa de Lima Marques Nogueira | U114: Marcela Soares Ferreira | V114: SEI
A115: 9401.406/23 | B115: 9401406 | C115: 2320.01.0010255/2023-50 | D115: Dhuan Comissária de Despachos Aduaneiros Ltda. | E115: Prestação de serviços de logística, despachos aduaneiros e desembaraços alfandegários. | F115: Não | H115: 2023-12-01 | I115: 2028-11-30 | J115: 2024-12-01 | K115: 2025-11-30 | L115: 11 | M115: 2025 | N115: =O115/12 -> 25013.31667 | O115: 300159.8 | P115: G.GLQ | R115: Gisele de Fátima Melo | S115: Jefferson Ferreira Sardinha Ribeiro | T115: Lizziane d'Ávila Pereira | U115: Marcela Soares Ferreira | V115: SEI
A116: 9280.256/21 | B116: 9280256 | C116: 2320.01.0014726/2019-13 | D116: Diamed Latino América S/A | E116: Aquisição de sistema analítico para realização dos testes imunohematológicos do receptor e paciente, com equipamentos em comodato. | F116: Sim | H116: 2021-06-02 | I116: 2026-06-01 | J116: 2025-06-02 | K116: 2026-06-01 | L116: 06 | M116: 2026 | N116: - | O116: 1988129.3 | P116: T.GLA.CIH | Q116: Luciana Cayres Schmidt Patrícia Savini | R116: Luciana Cayres Schmidt | V116: SEI
A117: 9394.630/23 | B117: 9394630 | C117: 2320.01.0013744/2023-34 | D117: Diamed Latino América S/A | E117: Aquisição de reagentes para imunohematologia (Lotes 01, 02 e 03). | F117: Sim | H117: 2023-09-30 | I117: 2028-09-29 | J117: 2024-09-30 | K117: 2025-09-29 | L117: 09 | M117: 2025 | N117: - | O117: 1041127.1 | P117: T.GLA.CIH | R117: Luciana Cayres Schmidt | S117: Carolina Andrade | T117: Marisa de Lima Marques Nogueira | U117: Marcela Soares Ferreira | V117: SEI
A118: 9447.682/2025 | B118: 9447682 | C118: 2320.01.0000694/2025-74 | D118: Diamed Latino América S/A | E118: aquisição de reagentes para testes imunohematológicos e moleculares da rotina de pacientes e doadores, com equipamento em comodato, com equipamento em comodato, | F118: Sim | H118: 2025-01-17 | L118: 01 | M118: 2026 | O118: 1764.72 | P118: T.GLA.CIH | R118: Luciana Cayres Schmidt | S118: Fabrizzio de Oliveira Dias | T118: Lizziane d'Ávila Pereira | U118: Marcela Soares Ferreira | V118: SEI
A119: 9454.460/25 | B119: 9454460 | C119: 2320.01.0003868/2025-27 | D119: Diamed Latino América S/A | E119: Aquisição de reagentes para testes imunohematológicos (lotes 02 e 03). | F119: Não | H119: 2025-03-13 | I119: 2035-03-12 | L119: 03 | M119: 2026 | O119: 33923.16 | P119: T.GLA.CIH | R119: Luciana Cayres Schmidt | S119: Fabrizzio de Oliveira Dias | T119: Lizziane d'Ávila Pereira | U119: Marcela Soares Ferreira | V119: SEI
A120: 9468.314/25 | B120: 9468314 | C120: 2320.01.0006175/2025-12 | D120: Diamed Latino América S/A | E120: Aquisição sistema analítico para realização de teste para a triagem de doadores. | F120: Não | H120: 2025-05-15 | I120: 2026-05-14 | L120: 01 | M120: 2026 | O120: 601463.2 | P120: T.GLA.CSI | R120: Sabrina Vieira Espíndola | S120: Nauhara Vieira de Castro Barrosi | U120: Marcela Soares Ferreira | V120: SEI
A121: 9468.364/25 | B121: 9468364 | C121: 2320.01.0000050/2025-02 | D121: Diamed Latino América S/A | E121: Aquisição de reagentes para realização de testes imunohematológicos (lotes 01 e 06). | F121: Não | H121: 2025-05-20 | I121: ??? | L121: 05 | M121: 2026 | O121: 73190.36 | P121: T.GLA.CIH | R121: Luciana Cayres Schmidt | S121: Fabrizzio de Oliveira Dias | T121: Marcela Soares Ferreira | V121: SEI
A122: 9453.451/25 | B122: 9453451 | C122: 2320.01.0009879/2024-14 | D122: DINÂMICA DISTRIBUIÇÃO LTDA EPP. | E122: Aquisição de dispositivos de infusão e agulha múltipla para coleta a vácuo. | F122: Não | H122: 2025-03-20 | I122: 2035-03-19 | L122: 03 | M122: 2026 | O122: 12300 | P122: G.GLQ.ADM LAB.LHEM | R122: Mônica Vieira Gomes | T122: Lizziane d'Ávila Pereira | U122: Marcela Soares Ferreira | V122: SEI
A123: 9459.067/25 | B123: 9459067 | C123: 2320.01.0005163/2025-79 | D123: DINÂMICA DISTRIBUIÇÃO LTDA EPP. | E123: Aquisição de tubos e ponteiras (Lotes 02 e 04). | F123: Não | H123: 2025-04-04 | I123: 2035-04-03 | L123: 04 | M123: 2026 | O123: 6183 | P123: T.GLA | R123: João Paulo dos Santos Barbosa | T123: Marcela Soares Ferreira | V123: SEI
A124: 9470.126/25 | B124: 9470126 | C124: 2320.01.0001823/2025-49 | D124: Distribuidora de Águas Minerais BH Ltda. | E124: Aquisição de água mineral em garrafão retornável, com bebedouro refrigerado em comodato. | F124: Sim | H124: 2025-06-05 | I124: 2035-06-04 | L124: 06 | M124: 2026 | O124: 151905 | P124: DGI.NZL | R124: Marcelo de Aguiar Gomes | S124: Nilza de Melo Pereira | T124: Anna Luíza Leandro Fernandes Moreira | U124: Marcela Soares Ferreira | V124: SEI
A125: 9392.808/23 | B125: 9392808 | C125: 2320.01.0012183/2023-83 | D125: Distribuidora Mendonça e Miranda Ltda | E125: Aquisição de Insumos e reagentes necessário para tipificação HLA (média/alta resolução) de amostras de Doadores e Receptores de Medula Óssea (lote 01). | F125: Não | H125: 2023-08-25 | I125: 2028-08-24 | J125: 2024-08-25 | K125: 2025-08-24 | L125: 08 | M125: 2025 | N125: - | O125: 16065.5 | P125: T.GLA.HLA | R125: Felipe Carlos Brito de Souza | S125: Luciana Lara Viegas da Aparecida | T125: Marcela Soares Ferreira | U125: Marisa de Lima Marques Nogueira | V125: SEI
A126: 9442.023/24 | B126: 9442023 | C126: 2320.01.0015891/2024-68 | D126: Distribuidora Mendonça e Miranda Ltda. | E126: Aquisição de tubo criogênico (lote 01). | F126: Não | H126: 2024-11-12 | I126: 2025-11-11 | J126: - | L126: 11 | M126: 2025 | O126: 2000 | P126: T.GLA.CIH | R126: Luciana Cayres Schmidt | S126: Carolina Gonçalves Andrade | T126: Lizziane d'Ávila Pereira | U126: Marcela Soares Ferreira | V126: SEI
A127: 9470.489/25 | B127: 9470489 | C127: 2320.01.0008805/2025-06 | D127: Distribuidora Mendonça e Miranda Ltda. | E127: Aquisição de tubos para coleta de sangue a vácuo, tubos de vidro para laboratório e tampa uso laboratório (lote 04). | F127: NÃO | H127: 2025-06-13 | I127: 2035-06-12 | L127: 06 | M127: 2026 | O127: 106596 | P127: T.GLA | R127: João Paulo dos Santos Barbosa | T127: Anna Luíza Leandro Fernandes Moreira | U127: Marcela Soares Ferreira | V127: SEI
A128: 9445.780/24 | B128: 9445780 | C128: 2320.01.0017331/2024-85 | D128: DML Distribuição Ltda. | E128: Aquisição de materiais de limpeza para atender a demanda das Unidades da Fundação Hemominas (Lote 21). | F128: Não | H128: 2024-12-13 | I128: 2025-12-12 | J128: - | L128: 12 | M128: 2025 | O128: 15000 | P128: DGI.NZL | R128: Marcelo de Aguiar Gomes | S128: Nilza de Melo Pereira | T128: Marcela Soares Ferreira | U128: Lizziane d'Ávila Pereira | V128: SEI
A129: 9382.504/23 | B129: 9382504 | C129: 2320.01.0008859/2022-12 | D129: DRX Serviços Técnicos em Computadores, Máquinas e Equipamentos Ltda - ME | E129: Prestação de serviços de manutenção preventiva semestral e corretiva ilimitada, incluindo todo e qualquer tipo de mão de obra, com fornecimento de peças, necessários ao perfeito funcionamento e conservação em 02 (dois) Citômetros de Fluxo BD modelo FacsCalibur, instalados no prédio do CETEBIO. | F129: Não | H129: 2023-04-18 | I129: 2028-04-17 | J129: 2025-04-18 | K129: 2026-04-17 | L129: 04 | M129: 2026 | N129: =O129/12 -> 34853.28667 | O129: 418239.44 | P129: GAD.CETEBIO DGI.ENC | R129: Antônio Ferreira de Oliveira Filho | S129: Maria Lúcia Soares de Moura | T129: Maycon do Vale Silva | U129: Marcela Soares Ferreira | V129: SEI
A130: 9445.822/24 | B130: 9445822 | C130: 2320.01.0017330/2024-15 | D130: Eco Plast Comércio Ltda. | E130: Aquisição de materiais de limpeza para atender a demanda das Unidades da Fundação Hemominas (Lote 18). | F130: Não | H130: 2024-12-16 | I130: 2025-12-15 | L130: 12 | M130: 2025 | O130: 80520 | P130: DGI.NZL | R130: Marcelo de Aguiar Gomes | S130: Nilza de Melo Pereira | T130: Marcela Soares Ferreira | U130: Lizziane d'Ávila Pereira | V130: SEI
A131: 9459.025/25 | B131: 9459025 | C131: 2320.01.0005209/2025-98 | D131: Eletrind Eletricidade Industrial Ltda. | E131: Instalação de sistema de proteção contra descargas atmosféricas (Lote 04). | F131: Não | H131: 2025-04-04 | L131: 04 | M131: 2027 | O131: 869000 | P131: I.GIF.AQE | R131: Márcia Mourão Moreira | S131: Guilherme Ferreira Alves Júnior | T131: Marcela Soares Ferreira | U131: Lizziane d'Ávila Pereira | V131: SEI
A132: 9405.875/23 | B132: 9405875 | C132: 2320.01.0007535/2023-61 | D132: Elevadores Módulo - LTDA | E132: Prestação de Serviço de Serviços de manutenção de elevadores da Fundação Hemominas (lotes 01 e 02) | H132: 2023-12-22 | I132: 2028-12-21 | J132: 2024-12-22 | K132: 2025-12-21 | L132: 12 | M132: 2025 | O132: 156540 | P132: DGI.ENC HBH.A.MPR | R132: Wesley Rodrigues Tomaz e Douglas Augusto Rodrigues Pereira | S132: Alexandre Vitor da Silva ePaula Maria Leão Mendes Roenick | T132: Emilene Gomes e Silva | U132: Lizziane d´Ávila Pereira | V132: SEI
A133: 9274.028/21 | B133: 9274028 | C133: 2320.01.0016010/2020-68 | D133: Empresa Brasileira de Correios e Telégrafos | E133: Contratação de produtos e serviços por meio de Pacote de Serviços dos Correios. | F133: Não | H133: 2021-03-19 | I133: 2026-03-18 | J133: 2025-03-19 | L133: 03 | M133: 2026 | N133: =O133/12 -> 60833.33333 | O133: 730000 | P133: G.GLQ.PRT. PROTOCOLO | Q133: Pablo Ruas dos Santos | R133: Pablo Ruas dos Santos | V133: SEI
A134: 9261.663/20 | B134: 9261663 | C134: 2320.01.0013000/2019-55 | D134: Energisa Minas Gerais - Distribuidora de Energia S.A. | E134: Prestação ao Hemocentro de Manhuaçu de serviço de fornecimento de energia elétrica sob a modalidade CCER (contrato de compra de energia regulada) e CUSD (contrato uso do sistema de distribuição). | F134: Não | H134: 2020-12-03 | I134: 2025-12-02 | J134: 2024-12-03 | K134: 2025-12-02 | L134: 12 | M134: 2025 | N134: 14022.51417 | O134: 168270.17 | P134: GAD.MÇU | Q134: Luiz Carlos Moreira | R134: Maria José Moreira | V134: SEI
A135: 9470.211/25 | B135: 9470211 | C135: 1210.01.0008578/2025-24 | D135: Esfera Master Comercial Ltda | E135: Compra de equipamentos técnicos (lote 04). | F135: Não | H135: 2025-06-11 | I135: 2026-06-10 | L135: 06 | M135: 2026 | O135: 41890 | P135: DGI.ENC.CAT | R135: Asaph Calazans Mendes de Souza | S135: Manoel Ricardo Caires Fernandes | T135: Anna Luíza Leandro Fernandes Moreira | U135: Marcela Soares Ferreira | V135: SEI
A136: 9342.132/22 | B136: 9342132 | C136: 2320.01.0002490/2022-91 | D136: Esmarty Especialista em Manutenção de Elevadores Ltda. | E136: Prestação de serviço de manutenção preventiva e corretiva em elevador e plataforma elevatória no Hemocentro Regional de Governador Valadares da Fundação Hemominas. | F136: Não | H136: 2022-07-01 | I136: 2027-06-30 | J136: 2025-07-01 | K136: 2026-06-30 | L136: 06 | M136: 2026 | N136: =O136/12 -> 2708.589167 | O136: 32503.07 | P136: GAD.GOV.A.COM GOV.A.MAT | R136: Deivandro Lessa | S136: Bruno Sousa Macedo | T136: Marisa de Lima Marques Nogueira | V136: SEI
A137: 9440.192/24 | B137: 9440192 | C137: 2320.01.0004970/2024-55 | D137: Esmarty Especialista em Manutenção de Elevadores Ltda. | E137: Prestação de Serviço operação e manutenção corretiva e preventiva em elevador convencional, com fornecimento de peças, da Unidade CETEBIO - Hemominas. | F137: Não | H137: 2024-10-14 | I137: 2034-10-13 | J137: ANUÊNCIA SOLICITADA EM 27/03/25 | L137: 10 | M137: 2025 | O137: 76795.69 | P137: DGI.ENC | R137: Adilson Meireles Pacheco | S137: Maria Lúcia Soares de Moura | T137: Maycon do Vale Silva | U137: Lizziane d'Ávila Pereira | V137: SEI
A138: 9449.332/25 | B138: 9449332 | C138: 2320.01.0001983/2025-94 | D138: Excellence Comercial Ltda. | E138: Compra de equipamentos de ar condicionado (Lotes 01, 02 e 03). | F138: Não | H138: 2025-02-11 | I138: 2025-08-10 | L138: 08 | M138: 2025 | O138: 88279.99 | P138: DGI.ENC | R138: Thiago Euzébio dos Santos | S138: Manoel Ricardo Caires Fernandes | T138: Marcela Soares Ferreira | U138: Lizziane d'Ávila Pereira | V138: SEI
A139: 9317.724/21 | B139: 9317724 | C139: 2320.01.0013283/2021-71 | D139: Expresso Minas Frios Ltda | E139: Prestação de serviço de transporte rodoviário de carga entre as Unidades da Fundação Hemominas, incluindo frete e serviços de carga e descarga de materiais de consumo diversos, bens permanentes, equipamentos e medicamentos. | F139: Não | H139: 2021-12-24 | I139: 2026-12-23 | J139: 2024-12-24 | K139: 2025-12-23 | L139: 12 | M139: 2025 | N139: 95610.49583 | O139: 1147325.95 | P139: G.GLQ.ALX | R139: Moisés Patrocínio da Silva | S139: Vagner Luiz da Silva | T139: Marisa de Lima Marques Nogueira | U139: Renata Azzi Júdice | V139: SEI
A140: 9270.944/21 | B140: 9270944 | C140: 2320.01.0002187/2021-30 | D140: EXTIMINAS Extintores Minas Gerais Ltda. | E140: Prestação de serviço de manutenção nos sistemas de prevenção e combate a incêndio e pânico das Unidades da Fundação Hemominas (Lotes 01 a 05). | F140: Não | H140: 2021-02-19 | I140: 2026-02-18 | J140: 2025-02-19 | K140: 2026-02-18 | L140: 02 | M140: 2026 | N140: 4141.09 | O140: 49693.07 | P140: G.GGP.SAO GAD.SLA HBH.A.MPR GAD.CETEBIO | Q140: Rodrigo Guilherme de Oliveira Rosa | R140: Ricardo Rocha Moreira Júnior (lotes 01 e 03) Marco Paulo Dias Canabrava (lote 05) Douglas Augusto Rodrigues Pereira (lote 04) Maria Lúcia Soares de Moura (lote 02) | S140: Paula Maria Leão Mendes Roenick (lote 04) | T140: Luiz Henrique Alvarenga Catão | V140: SEI
A141: 9317.014/21 | B141: 9261679 9317014 | C141: 2320.01.0013687/2020-30 | D141: Extincêndio Valadares Ltda - EPP | E141: Prestação de serviço de manutenção nos sistemas de prevenção e combate a incêndio e pânico das Unidades da Fundação Hemominas (Lotes 11 e 12). | F141: Não | H141: 2020-10-24 | I141: 2025-10-23 | J141: 2024-10-24 | K141: 2025-10-23 | L141: 10 | M141: 2025 | N141: 869.2375 | O141: 10430.85 | P141: GAD.MÇU GAD. GOV.A.MAT | Q141: Rodrigo Guilherme de Oliveira Rosa | R141: Maria José Moreira Bruno Sousa Macedo | V141: SEI
A142: 9447.039/24 | B142: 9447039 | C142: 2320.01.0017930/2024-14 | D142: FBX Importação, Exportação e Com. Atacadista de Prod. Farmacêuticos e Hospitalares Ltda. | E142: Aquisição de equipamentos técnicos: doppler, nas condições do Anexo I. | F142: Não | H142: 2024-12-23 | I142: 2025-12-22 | L142: 12 | M142: 2025' | O142: 537138 | P142: DGI.ENC.CAT | R142: Asaph Calazans Mendes de Souza | S142: Manoel Ricardo Caires Fernandes | T142: Maycon do Vale Silva | U142: Júlia Carolina Soares | V142: SEI
A143: 9439.795/24 | B143: 9439795 | C143: 2320.01.0013243/2023-78 | D143: Felipe Alvarenga Comércio e Serviços de Engenharia Ltda. | E143: Prestação de serviços de manutenção preventiva, corretiva, com fornecimento de peças, e instalação de equipamentos de ar condicionado da Unidade de Coleta de Poços de Caldas, do Hemonúcleo de Passos e do Hemocentro Regional de Pouso Alegre da Fundação Hemominas. | F143: Não | H143: 2024-10-01 | I143: 2034-09-30 | J143: - | L143: 09 | M143: 2025 | O143: 173999.92 | P143: DGI.ENC | R143: Thiago Euzébio dos Santos | S143: Alexandre Vitor da Silva | T143: Maycon do Vale Silva | U143: Lizziane d´Ávila Pereira | V143: SEI
A144: 9468.714/25 | B144: 9468714 | C144: 2320.01.0015676/2024-53 | D144: F.F. Controle e Certificação Ltda. | E144: Prestação de serviços de certificação da sala limpa (sala de procedimentos e antecâmara) ISSO Classe 7 do Banco de Tecidos. | F144: Não | H144: 2025-06-03 | I144: 2035-06-02 | L144: 06 | M144: 2026 | O144: 7449 | P144: DGI.ENC | R144: Antônio Ferreira de Oliveira Filho | S144: Maria Lúcia Soares de Moura | T144: Anna Luíza Leandro Fernandes Moreira | U144: Marcela Soares Ferreira | V144: SEI
A145: 9445.887/24 | B145: 9445887 | C145: 2320.01.0017873/2023-04 | D145: Fina Estampa Carimbos Ltda - ME | E145: Prestação de serviços de confecção de carimbos para o Hemocentro Regional de Montes Claros (Lote 01). | F145: Não | H145: 2024-12-13 | I145: 12/12/2025 (COTEP) | L145: 12 | M145: 2025 | O145: 596.9 | P145: MOC.GAD | R145: Daniel Nascimento Salgado | S145: Nátaly Mariana Silva | T145: Marcela Soares Ferreira | U145: Lizziane d´Ávila Pereira | V145: SEI
A146: 9440.832/24 | B146: 9440832 | C146: 2320.01.0005452/2024-39 | D146: Fran Luy Padaria e Confeitaria Ltda. | E146: Aquisição de gêneros alimentícios para o Lanche Complementar do Doador (Lote 1) e Fornecimento de lanches preparados para o Lanche Capacitação Externa (Lote 2). | F146: Não | H146: 2024-10-25 | I146: LOTE 01 ( 01 ano) LOTE 02 (04 meses) | J146: - | L146: 10 | M146: 2025 | N146: - | O146: 238298 | P146: JFO.GAD | R146: Valcilea Campos Damasceno | S146: André Meireles Fontes | T146: Marcela Soares Ferreira | U146: Lizziane d´Ávila Pereira | V146: SEI
A147: 9292.013/21 9253.476 /20 | B147: 9253476 9292013 | C147: 2320.01.0015306/2019-67 | D147: Fresenius Hemocare Brasil Ltda. | E147: Aquisição de kit para dosagem de hemoglobina e amostras controle, com comodato de equipamentos. | F147: Sim | H147: 2020-07-31 | I147: 2025-07-30 | J147: 2024-07-31 | K147: 2025-07-30 | L147: 07 | M147: 2025 | N147: - | O147: 1024853 | P147: T.GLA | R147: Felipe Carlos Brito de Souza | S147: Tamara Dauare de Almeida | T147: Adriana Aparecida Tavares Diniz | U147: Marcela Soares Ferreira | V147: SEI
A148: 9291.832/21 | B148: 9291832 | C148: 2320.01.0015039/2020-95 | D148: Fresenius Hemocare Brasil Ltda. | E148: Aquisição de bolsas de sangue. | F148: Não | H148: 2021-09-22 | I148: 2026-09-21 | J148: 2024-09-22 | K148: 2025-09-21 | L148: 09 | M148: 2025 | N148: - | O148: 23518380 | P148: T.GCQ | R148: Gabriela Coelho de Rezende | S148: Flávia Naves Givisiez | T148: Marisa de Lima Marques Nogueira | U148: Adriana Aparecida Tavares Diniz | V148: SEI
A149: 9291.836/21 | B149: 9291836 | C149: 2320.01.0015039/2020-95 | D149: Fresenius Hemocare Brasil Ltda. | E149: Locação de equipamentos de hemoterapia, com prestação de serviços de manutenção preventiva, corretiva e calibração. | F149: Não | H149: 2021-09-22 | I149: 2025-09-21 | J149: 2024-09-22 | K149: 2025-09-21 | L149: 09 | M149: 2025 | O149: 3.956.323,80 | P149: T.GCQ DGI.ENC | R149: Dayseanne Rodrigues Tomaz | S149: Pamela Lorrana Freitas Marques | T149: Marisa de Lima Marques Nogueira | U149: Adriana Aparecida Tavares Diniz | V149: SEI
A150: 9371.981/23 | B150: 9371981 | C150: 2320.01.0000392/2023-86 | D150: Fresenius Hemocare Brasil Ltda. | E150: Aquisição de Anti-soros - ANTI-E (maiusculo) e Anti-Soros - ANTI-CW (Lotes 03 e 05). | F150: Não | H150: 2023-01-17 | I150: 2028-01-16 | J150: 2025-01-17 | K150: 2026-01-16 | L150: 01 | M150: 2026 | N150: - | O150: 39352.5 | P150: T.GLA.CSO T.GLA.CIH.DOA | R150: Jomara Mendes Gonçalves | S150: Dirceu Albino Junior | T150: Marcela Soares Ferreira | U150: Dallila Rodrigues Julia | V150: SEI
A151: 9437.075/24 | B151: 9437075 | C151: 2320.01.0011827/2024-89 | D151: FRESENIUS HEMOCARE BRASIL LTDA. | E151: Aquisição de bolsa de transferência quádrupla pediátrica com com volume maior ou igual a 150 ml (Lote 01 | F151: Não | H151: 2024-08-30 | J151: - | L151: 08 | M151: 2027 | O151: 523800 | P151: T.GLA.CIH | R151: Ana Paula de Morais | S151: Roberto Mauro Ferreira Silva | T151: Lizziane d'Ávila Pereira | U151: Marcela Soares Ferreira | V151: SEI
A152: 9454.469/25 | B152: 9454469 | C152: 2320.01.0003869/2025-97 | D152: Fresenius Hemocare Brasil Ltda. | E152: Aquisição de reagentes para testes imunohematológicos (Lote 04). | F152: Não | H152: 2025-03-11 | I152: 2035-03-10 | L152: 03 | M152: 2026 | O152: 62400 | P152: T.GLA.CIH | R152: Luciana Cayres Schmidt | S152: Fabrizzio de Oliveira Dias | T152: Lizziane d'Ávila Pereira | U152: Marcela Soares Ferreira
A153: 9470.546/25 | B153: 9470546 | C153: 2320.01.0008855/2025-14 | D153: Fresenius Hemocare Brasil Ltda. | E153: Compra de equipamentos técnicos (lote 02). | F153: Não | H153: 2025-06-14 | L153: 06 | M153: 2026 | O153: 131700 | P153: DGI.ENC.CAT | R153: Asaph Calazans Mendes de Souza | S153: Manoel Ricardo Caires Fernandes | T153: Anna Luíza Leandro Fernandes Moreira | U153: Marcela Soares Ferreira | V153: SEI
A154: 9379.422/23 | B154: 9379422 | C154: 2320.01.0017711/2022-16 | D154: Fujicom Comércio de Materiais Hospitalares e Importação Ltda. | E154: Aquisição de lâminas de cobre e/ou elemento selante por radiofrequência (item 01). | F154: Não | H154: 2023-03-29 | I154: 2028-03-28 | J154: 2025-03-29 | K154: 2026-03-28 | L154: 03 | M154: 2026 | N154: - | O154: 2050200 | P154: T.GCQ | R154: Roberto Mauro Ferreira Silva | S154: Gabriela Coelho de Rezende | T154: Marisa de Lima Marques Nogueira | U154: Marcela Soares Ferreira | V154: SEI
A155: 9379.423/23 | B155: 9379423 | C155: 2320.01.0017711/2022-16 | D155: Fujicom Comércio de Materiais Hospitalares e Importação Ltda. | E155: Locação de equipamentos, item 02. | F155: Não | H155: 2023-03-29 | I155: 2027-03-28 | J155: 2025-03-29 | K155: 2026-03-28 | L155: 03 | M155: 2026 | N155: =O155/12 -> 4080 | O155: 48960 | P155: DGI.ENC | R155: Dayseanne Rodrigues Tomaz | S155: Pamela Lorrana Freitas Marques | T155: Marisa de Lima Marques Nogueira | U155: Marcela Soares Ferreira | V155: SEI
A156: 9438.028/24 | B156: 9438028 | C156: 2320.01.0014025/2024-10 | D156: Fujicom Comércio de Materiais Hospitalares e Importação Ltda. | E156: Aquisição de filtros para remoção de leucócitos em concentrado de plaquetas (Lote 02). | F156: Não | H156: 2024-10-07 | I156: 2034-10-06 | J156: 2024-10-07 | K156: 2025-10-06 | L156: 10 | M156: 2025 | N156: - | O156: 182000 | P156: T.GCQ | R156: Roberto Mauro Ferreira Silva | T156: Lizziane d'Ávila Pereira | U156: Thais Helena Parizzi Saraiva | V156: SEI
A157: 9452.471/25 | B157: 9452471 | C157: 2320.01.0010300/2024-93 | D157: Fundação Ezequiel Dias | E157: Prestação de serviços laboratoriais de análises microbiológicas. | F157: Não | H157: 2025-03-20 | I157: 2035-03-19 | L157: 03 | M157: 2026 | O157: 174927.52 | P157: CETEBIO | R157: Maria Lúcia Soares de Moura | S157: Jucélia Schittini da Silva Morais | T157: izziane d'Ávila Pereira | U157: Marcela Soares Ferreira | V157: SEI
A158: 9440.709/24 | B158: 9440709 | C158: 2320.01.0006764/2024-20 | D158: Fundação Instituto de Pesquisas Econômicas Administrativas e Contábeis de Minas Gerais - IPEAD. | E158: Prestação de Serviços de Consultoria em Área de Logística para a Fundação Hemominas. | F158: Não | H158: 2024-10-24 | I158: 2025-10-23 | J158: - | L158: 10 | M158: 2025 | N158: - | O158: 577100 | P158: TEC | R158: Fernando Augusto Alves de Sousa | S158: Dirceu Alves Jácome Júnior | T158: Lizziane d'Ávila Pereira | U158: Marcela Soares Ferreira | V158: SEI
A159: 9441.724/24 | B159: 9441724 | C159: 2320.01.0007378/2024-29 | D159: Fundação João Pinheiro | E159: Prestação de Serviço de Contratação de curso de liderança e gestão para servidores da Fundação Hemominas, conforme Programa de Liderança e Gestão. | F159: Não | H159: 2024-12-17 | I159: 2025-12-16 | J159: - | L159: 12 | M159: 2025 | N159: - | O159: 412500 | P159: G.GGP.TDE | R159: Manuela Mota Hauck | S159: Andréa Maria Almeida Medrado | T159: Marcela Soares Ferreira | U159: Lizziane d'Ávila Pereira | V159: SEI
A160: 9460.778/25 | B160: 9460778 | C160: 2320.01.0006594/2025-48 | D160: GALFI SERVIÇOS E LOCAÇÕES LTDA | E160: Prestação de serviços de reforma dos telhados do Hemocentro de Belo Horizonte (Lote 02). | F160: Não | H160: 2025-05-07 | I160: 2026-05-06 | L160: 05 | M160: 2026 | O160: 299000 | P160: I.GIF.AQE | R160: Silvana Rodrigues dos Santos Rocha | S160: Júlio Campos Franklin | T160: Marcela Soares Ferreira | V160: SEI
A161: 9292.057/21 | B161: 9292057 | C161: 2320.01.0005607/2021-34 | D161: GARRASEG SOLUÇÕES EM SEGURANÇA ELETRÔNICA LTDA. | E161: Prestação de serviço de manutenção do Sistema de Vigilância Eletrônica na Unidade da Fundação Hemominas em Uberaba. | F161: Não | H161: 2021-11-13 | I161: 2026-11-12 | J161: 2024-11-13 | K161: 2025-11-12 | L161: 11 | M161: 2025 | N161: =O161/12 -> 1227.551667 | O161: 14730.62 | P161: GAD.URA | R161: Leila Pereira | S161: Lúcia de Fátima Oliveira | T161: Marisa de Lima Marques Nogueira | U161: Renata Azzi Júdice | V161: SEI
A162: 9459.068/25 | B162: 9459068 | C162: 2320.01.0005384/2025-29 | D162: Gasmontes Comércio e Transportes Ltda. | E162: Aquisição de central de dióxido de carbono (manifold). | F162: Não | H162: 2025-04-09 | I162: 08/10/2025 (COTEP) | L162: 10 | M162: 2025 | O162: 14350 | P162: DGI.ENC.CAT | R162: Asaph Calazans Mendes de Souza | S162: Manoel Ricardo Caires Fernandes | T162: Marcela Soares Ferreira | V162: SEI
A163: 9437.936/24 | B163: 9437936 | C163: 2320.01.0009301/2023-06 | D163: Gesmaq Comércio e Serviços Ltda | E163: Prestação de Serviço de manutenção preventiva mensal e corretivas, incluindo todo e qualquer tipo de mão de obra, com fornecimento de peças e materiais, necessários ao perfeito funcionamento de 03 (três) empilhadeiras, incluindo os carregadores de bateria, alocados no Almoxarifado Central. | F163: Não | H163: 2024-10-01 | I163: 2034-09-30 | J163: - | L163: 09 | M163: 2029 | N163: - | O163: 240000 | P163: DGI.ENC | R163: Eduardo da Silva Oliveira | S163: Alexandre Vitor da Silva | T163: Maycon do Vale Silva | U163: Lizziane d'Ávila Pereira | V163: SEI
A164: 9326.779/22 | B164: 9326779 | C164: 2320.01.0013145/2021-14 | D164: GHS Indústria e Serviços Ltda. | E164: Contratação de empresa para realização de ensaios do efluente não doméstico gerado no Hemocentro de Belo Horizonte. | F164: Não | H164: 2022-03-26 | I164: 2027-03-25 | J164: 2025-03-26 | K164: 2026-03-25 | L164: 03 | M164: 2026 | N164: =O164/12 -> 1733.655 | O164: 20803.86 | P164: HBH.A.MPR | R164: Douglas Augusto Rodrigues Pereira | S164: Paula Maria Leão Mendes Roenick | T164: Marisa de Lima Marques Nogueira | U164: Renata Azzi Júdice | V164: SEI
A165: 9451.321/25 | B165: 9451321 | C165: 2320.01.0016816/2024-22 | D165: Globalsec Tecnologia da Informação Ltda. | E165: Prestação de Serviços de certificação digital para pessoa jurídica. | F165: Não | H165: 2025-02-18 | I165: 2035-02-17 | L165: 02 | M165: 2030 | O165: 196970 | P165: I.GTC.ITS | R165: Izadalvo Ricardo de Oliveira | S165: Fabrine Juliana Fabrício Costa | T165: Lizziane d'Ávila Pereira | U165: Marcela Soares Ferreira | V165: SEI
A166: 9396.509/23 | B166: 9396509 | C166: 2320.01.0000857/2023-44 | D166: Globalthings Tecnologia Ltda. | E166: Prestação de Serviço de FORNECIMENTO DE LICENÇA, PRESTAÇÃO DE SERVIÇOS DE MIGRAÇÃO DE BANCO DE DADOS, DE MANUTENÇÃO DE SISTEMAS DE INFORMAÇÃO E DE CONSULTORIA PARA CUSTOMIZAÇÃO DE SISTEMA DE INFORMAÇÃO | F166: Não | H166: 2023-10-12 | I166: 2027-10-11 | J166: - | L166: 10 | M166: 2027 | N166: 3270.83 | O166: 161610.47 | P166: DGI.ENC | R166: Felipe Garabini Antunes | S166: Eduardo da Silva Oliveira | T166: Emilene Gomes e Silva | U166: Marcela Soares Ferreira; | V166: SEI
A167: 9402.114/23 | B167: 9402114 | C167: 2320.01.0016799/2023-96 | D167: Greiner Bio-One Brasil Produtos Médicos Hospitalares Ltda. | E167: Aquisição de tubo para coleta de sangue a vácuo, Lotes 04, 05, 06 e 07. | F167: Não | H167: 2023-12-20 | I167: 19/12/2028 (LOTE 04). | J167: 2024-12-20 | K167: 2025-12-19 | L167: 12 | M167: 2025 | N167: - | O167: 13200 | P167: T.GLA | R167: Andreia Alvares Tângari Beatriz Nogueira de Carvalho | S167: Felipe Carlos Brito de Souza | T167: Lizziane d'Ávila Pereira | U167: Marcela Soares Ferreira | V167: SEI
A168: 9470.488/25 | B168: 9470488 | C168: 2320.01.0008804/2025-33 | D168: Greiner Bio-One Brasil Produtos Médicos Hospitalares Ltda. | E168: Aquisição de tubos para coleta de sangue a vácuo, tubos de vidro para laboratório e tampa uso laboratório (lotes 01 e 02).). | F168: Não | H168: 2025-06-13 | I168: 2035-06-12 | L168: 06 | M168: 2026 | O168: 503400 | P168: T.GLA | R168: João Paulo dos Santos Barbosa | T168: Anna Luíza Leandro Fernandes Moreira | U168: Marcela Soares Ferreira | V168: SEI
A169: 9371.972/23 | B169: 9371972 | C169: 2320.01.0000228/2023-52 | D169: Grifols Brasil Ltda | E169: Aquisição de Anti-Soros - Anti JKA Monoclonal IGM Fenotipagem Eritrocitaria (Lote 07 Itens 1 e 2). | F169: Não | H169: 2023-01-14 | I169: 2028-01-13 | J169: 2025-01-14 | K169: 2026-01-13 | L169: 01 | M169: 2026 | N169: - | O169: de: 151.992. para 127.293,30 | P169: T.GLA.CSO T.GLA.CIH.DOA | R169: Jomara Mendes Gonçalves | S169: Dirceu Albino Júnior | T169: Marcela Soares Ferreira | U169: Dallila Rodrigues Julia | V169: SEI
A170: 9454.471/25 | B170: 9454471 | C170: 2320.01.0003873/2025-86 | D170: Grifols Brasil Ltda. | E170: Aquisição de reagentes para testes imunohematológicos (Lote 11). | F170: Não | H170: 2025-03-11 | I170: 2035-03-10 | L170: 03 | M170: 2026 | O170: 749557.44 | P170: T.GLA.CIH | R170: Luciana Cayres Schmidt | S170: Fabrizzio de Oliveira Dias | T170: Lizziane d'Ávila Pereira
A171: 9348.862/22 | B171: 9348862 | C171: 2320.01.0006678/2022-20 | D171: GTO Grupo Técnico em Odontologia Ltda - ME | E171: Prestação de serviço de manutenção, reparo, conservação e adaptação em equipamentos e instrumentos odontológicos do Hemocentro de Belo Horizonte da Fundação Hemominas. | F171: Não | H171: 2022-11-08 | I171: 2027-11-07 | J171: 2024-11-08 | K171: 2025-11-07 | L171: 11 | M171: 2025 | N171: =O171/12 -> 1483.283333 | O171: 17799.4 | P171: DGI.ENC | R171: Paulo José Cifuentes Gonçalves | S171: Alexandre Vitor da Silva | T171: Maycon do Vale Silva | U171: Marcela Soares Ferreira | V171: SEI
A172: 9457.502/25 | B172: 9457502 | C172: 2320.01.0011004/2024-97 | D172: IBUR Negócios e Serviços Ltda. | E172: Prestação de Serviços de Manutenção Preventiva semestral, Qualificação do Equipamento - Mapeamento de Dose anual do Irradiador IBL 437C e Calibração/Irradiação anual do Dosímetro Thero Fisher Scientific - RadEye. | F172: Não | H172: 2025-03-25 | I172: 2035-03-24 | L172: 03 | M172: 26 | O172: 60000 | P172: DGI.ENC | R172: Eduardo da Silva Oliveira | S172: Felipe Garabini Antunes | T172: Lizziane d'Ávila Pereira | U172: Marcela Soares Ferreira | V172: SEI
A173: 9445.560/24 | B173: 9445560 | C173: 2320.01.0004803/2024-05 | D173: Indrel Indústria de Refrigeração Londrinense Ltda. | E173: Prestação de Serviço de manutenção corretiva, preventiva, transporte, qualificação inicial, incluindo todo e qualquer tipo de mão de obra, com fornecimento de peças necessárias para o perfeito funcionamento e conservação dos equipamentos de refrigeração da marca INDREL. | F173: Não | H173: 2024-12-04 | I173: 2034-12-03 | J173: - | L173: 12 | M173: 2025 | O173: 969010 | P173: DGI.ENC | R173: Felipe Silva Teixeira | S173: Manoel Ricardo Caires Fernandes | T173: Marcela Soares Ferreira | U173: Lizziane d'Ávila Pereira | V173: SEI
A174: 9446.079/24 | B174: 9446079 | C174: 2320.01.0017851/2024-13 | D174: Indrel Indústria de Refrigeração Londrinense Ltda. | E174: Aquisição de equipamentos técnicos: freezer para uso de laboratório. | F174: Não | H174: 2024-12-20 | I174: 2025-12-19 | L174: 12 | M174: 2025 | O174: 400000 | P174: DGI.ENC DGI.ENC.CAT | R174: Asaph Calazans Mendes de Souza | S174: Manoel Ricardo Caires Fernandes | T174: Maycon do Vale Silva | U174: Júlia Carolina Soares | V174: SEI
A175: 9404.130/23 | B175: 9404130 | C175: 2320.01.0017149/2023-55 | D175: Infocore Soluções Tecnológicas Ltda. | E175: Prestação de serviço de Manutenção preventiva anual e corretiva das subestações de energia elétrica - Cetebio da Fundação Hemominas, LOTE 01. | F175: Não | H175: 2023-12-14 | I175: 2028-12-13 | J175: 2024-12-14 | K175: 2025-12-13 | L175: 12 | M175: 2025 | N175: 4983.189167 | O175: 59798.27 | P175: I.GIF.MPR | R175: Forlan Bragança Lemos | S175: Leila Guedes Alvim | T175: Emilene Gomes e Silva | U175: Marisa de Lima Marques Nogueira | V175: SEI
A176: 9383.296/23 | B176: 9383296 | C176: 2320.01.0000472/2022-63 | D176: Infordinâmica Tecnologia Ltda. | E176: Prestação de serviço de suporte técnico a ambiente operacional de servidores e ambiente de banco de dados - atendimento 24x7. | F176: Não | H176: 2023-04-28 | I176: 2026-04-27 | J176: - | L176: 04 | M176: 2026 | N176: 159424.9558 | O176: 1913099.47 | P176: I.GTC.ITS | R176: Fabrine Juliana Fabricio Costa | S176: Daniel Eustáquio Coutinho | T176: Marisa de Lima Marques Nogueira | U176: Marcela Soares Ferreira | V176: SEI
A177: 9345.457/22 | B177: 9345457 | C177: 2320.01.0006706/2022-40 | D177: Infra do Brasil Comércio e Serviços Eireli | E177: Prestação de serviço de suporte técnico ao ambiente virtual de aprendizado. | F177: Não | H177: 2022-09-13 | I177: 2027-09-12 | J177: 2024-09-13 | K177: 2025-09-12 | L177: 09 | M177: 2025 | N177: 2294.32 | O177: 27531.84 | P177: I.GTC.ADS | R177: Adriana Lúcia dos Santos | S177: Fabrine Juliana Fabrício Costa | T177: Marcela Soares Ferreira | U177: Adriana Aparecida Tavares Diniz | V177: SEI
A178: 9437.185/24 | B178: 9437185 | C178: 2320.01.0003062/2024-64 | D178: Instituto Nacional de Seleções e Concursos - SELECON | E178: Prestação de serviços de planejamento, organização, formulação de questões operacionalização, logística e execução de concurso público para provimento aos cacrgos das carreiras de Analista de Hematologia e Hemoterapia - ANHH, Assistente Técnico de Hematologia e Hemoterapia - /ATHH e Médico da Área de Hematologia e Hemoterapia - MEDHH, instituídos pela Lei Estadual n° 15.462 de 13 de janeiro de 2005, no âmbito da Fundação Centro de Hematologia e Hemoterapia de Minas Gerais (Fundação Hemominas). | F178: Não | H178: 2024-09-04 | I178: 2025-09-03 | L178: 09 | M178: 2025 | O178: 1533889.5 | P178: G.GGP.CONCURSO | T178: Lizziane d'Ávila Pereira | U178: Júlia Carolina Soares | V178: SEI
A179: 9456.457/25 | B179: 9456457 | C179: 2320.01.0001373/2025-73 | D179: Instituto Zuriel Capacitação e Publicações Ltda. | E179: Prestação de serviços de publicidade dos avisos de licitação, bem como matérias de interesse da DPGF e gabinete, sem dedicação exclusiva de mão de obra. | F179: Não | H179: 2025-03-20 | I179: 2035-03-20 | L179: 03 | M179: 2026 | O179: 17068.3 | P179: G.GLQ.COM | R179: Rafael Ribeiro Lopes | S179: Andrea Aparecida Ferreira | T179: Marcela Soares Ferreira | U179: Lizziane d'Ávila Pereira | V179: SEI
A180: 9417.596/24 | B180: 9417596 | C180: 2320.01.0001341/2024-68 | D180: Interact Solutions Ltda | E180: Prestação de Serviço de subscrição de licença de software de planejamento estratégico - Interact Strategic Adviser, condições estabelecidas no Termo de Referência. | F180: Não | H180: 2024-03-28 | I180: 2029-03-27 | J180: 2025-03-28 | K180: 2026-03-27 | L180: 03 | M180: 2026 | O180: 341923.6 | P180: PRE.AAE | Q180: Diogo Wanis Lara | R180: Diogo Wanis Lara | S180: Fernanda Zampronio Carvalho | T180: Maycon do Vale Silva | U180: Lizziane d'Ávila Pereira | V180: SEI
A181: 9397.807/23 | B181: 9397807 | C181: 2320.01.0012003/2021-02 | D181: Iron Mountain do Brasil LTDA | E181: Prestação de Serviço de digitalização e microfilmaagem de documentos. | F181: Não | H181: 2023-10-31 | I181: 2028-10-30 | J181: 2024-10-31 | K181: 2025-10-30 | L181: 10 | M181: 2025 | O181: 720000 | P181: ADC/PGF/G.GPO/NAC | R181: Valéria Christina Pinto da Silva Penna | S181: Maria Isabel Castilho Campos | T181: emilene.gomes@hemominas.mg.gov.br | U181: Marisa de Lima Marques Nogueira | V181: SEI
A182: 9470.484/25 | B182: 9470484 | C182: 2320.01.0008742/2025-58 | D182: Instrutherm Instrumentos de Medição Ltda. | E182: Compra de equipamentos técnicos (lote 10). | F182: Não | H182: 2025-06-14 | L182: 06 | M182: 2026 | O182: 141600 | P182: DGI.ENC.CAT | R182: Asaph Calazans Mendes de Souza | S182: Manoel Ricardo Caires Fernandes | T182: Anna Luíza Leandro Fernandes Moreira | U182: Marcela Soares Ferreira | V182: SEI
A183: 9459.026/25 | B183: 9459026 | C183: 2320.01.0005213/2025-87 | D183: J & N Soluções Elétricas Ltda. | E183: Instalação de sistema de proteção contra descargas atmosféricas. | F183: Não | H183: 2025-04-04 | I183: 03/04/2027 Podendo ser prorrogado se necessário | L183: 04 | M183: 2027 | O183: 1010000 | P183: I.GIF.AQE | R183: Márcia Mourão Moreira | S183: Guilherme Ferreira Alves Júnior | T183: Marcela Soares Ferreira | U183: Lizziane d'Ávila Pereira | V183: SEI
A184: 9468.342/25 | B184: 9468342 | C184: 2320.01.0016936/2024-80 | D184: J & N Soluções Elétricas Ltda. | E184: Prestação de serviçoss de manutenção preventiva anual e corretiva nos transformadores de energia das unidades de Governador Valadares e Manhuaçu, com fornecimento de peças. | F184: Não | H184: 2025-05-23 | I184: 2035-05-22 | L184: 05 | M184: 2026 | O184: 45990.56 | P184: I.GIF.MPR | R184: Forlan Bragança Lemos | S184: Leila Guedes Alvim | T184: Marcela Soares Ferreira | V184: SEI
A185: 9470.482/25 | B185: 9470482 | C185: 2320.02.0008826/2025-21 | D185: JC Goumert Multi Serviços Ltda. | E185: Prestação de serviços de fornecimento de lanches/coffee break (Lote 01). | F185: Não | H185: 2025-06-14 | I185: 2035-06-13 | L185: 06 | M185: 2026 | O185: 57256 | P185: G.GGP.TDE | R185: Manuela Mota Hauck | S185: Andrea Maria Almeida Medrado | T185: Anna Luíza Leandro Fernandes Moreira | U185: Marcela Soares Ferreira | V185: SEI
A186: 9383.322/23 | B186: 9383322 | C186: 2320.01.0004741/2022-36 | D186: JMBM Engenharia Elétricas & Climatização Ltda | E186: Prestação de serviço de manutenção preventiva e corretiva de equipamentos de ar-condicionado no Hemonúcleo de Manhuaçu. | F186: Não | H186: 2023-04-19 | I186: 2028-04-18 | J186: 2025-04-19 | K186: 2026-04-18 | L186: 04 | M186: 2026 | N186: =O186/12 -> 3749.9325 | O186: 44999.19 | P186: MÇU.GAD | R186: Gulliver Fabricio Vieira Rocha | S186: Maria José Moreira | T186: Marcela Soares Ferreira | U186: Marcela Soares Ferreira | V186: SEI
A187: 9447.573/2025 | B187: 9447573 | C187: 2320.01.0008366/2024-28 | D187: JMBM Engenharia Elétricas & Climatização Ltda | E187: Prestação de serviços de manutenção dos equipamentos de ar condicionado do Hemonúcleo de Ponte Nova, | F187: Não | H187: 2025-01-10 | I187: 2035-01-09 | L187: 01 | M187: 2030 | N187: 111890 | O187: 559.45,00 | P187: PNO/GAD | R187: Luciana Marinho Monteiro Cerqueira | S187: Marcelo Fabri Leandro | T187: Marcela Soares Ferreira | U187: Lizziane d'Ávila Pereira
A188: 9376.887/23 | B188: 9376887 | C188: 2320.01.0011426/2022-58 | D188: JMBM Engenharia Elétricas & Climatização Ltda. | E188: Prestação de serviço de manutenção preventiva e corretiva de equipamentos de ar-condicionado para o Hemonúcleo de Diamantina da Fundação Hemominas. | F188: Não | H188: 2023-03-14 | I188: 2028-03-13 | J188: 2025-03-14 | K188: 2026-03-13 | L188: 03 | M188: 2026 | N188: =O188/12 -> 2490 | O188: 29880 | P188: GAD.DIA | R188: Wilker Pinheiro Cordeiro | S188: Amanda Franciele Dias de Oliveira | T188: Marcela Soares Ferreira | U188: Dallila Rodrigues Julia | V188: SEI
A189: 9437.077/24 | B189: 9437077 | C189: 2320.01.0011833/2024-24 | D189: JP INDÚSTRIA FARMACÊUTICA S.A | E189: a Aquisição de bolsade transferência com volume de 300 a 500 ml (Lote 02) | F189: Não | H189: 2024-08-29 | J189: - | L189: 08 | M189: 2027 | N189: =O189/12 -> 33600 | O189: 403200 | P189: T.GCQ | R189: Ana Paula de Morais | S189: Roberto Mauro Ferreira Silva | T189: Lizziane d'Ávila Pereira | U189: Marcela Soares Ferreira | V189: SEI
A190: 9445.799/24 | B190: 9445799 | C190: 2320.01.0016640/2024-21 | D190: Jvatec Ar Condicionado Ltda | E190: Prestação de Serviço de instalação de equipamentos de ar condicionado para as diversas unidades da Fundação Hemominas (Lotes 07 a 11 e 13 a 23). | F190: Não | H190: 2024-12-23 | I190: 2025-06-22 | J190: 2025-06-23 | K190: 2026-01-22 | L190: 01 | M190: 2026 | O190: 80000.2 | P190: DGI.ENC | R190: Thiago Euzébio dos Santos | S190: Eduardo da Silva Oliveira | T190: Maycon do Vale Silva | U190: Júlia Carolina Soares | V190: SEI
A191: 9447;743/25 | B191: 9447743 | C191: 2320.01.0007163/2024-14 | D191: Kleper Viagens, Eventos e Turismo Ltda | E191: Prestação de serviços de infraestrutura para realização de encontros técnicos-científicos da Fundação Hemominas. | F191: Não | H191: 2025-01-27 | L191: 01 | M191: 2026 | O191: 822032 | P191: G.GGP.TDE | R191: Manuela Mota Hauck | S191: Andréa Maria Almeida Medrado | T191: Marcela Soares Ferreira | U191: Lizziane d'Ávila Pereira | V191: SEI
A192: 9371.975/23 | B192: 9371975 | C192: 2320.01.0000372/2023-44 | D192: Kovalent do Brasil Ltda | E192: Aquisição de Anti-soros - Tipo: ANTI -C (Lote 1 e 2). | F192: Não | H192: 2023-01-18 | I192: 2028-01-17 | J192: 2025-01-18 | K192: 2026-01-17 | L192: 01 | M192: 2026 | N192: - | O192: 58245 | P192: T.GLA.CSO T.GLA.CIH.DOA | R192: Jomara Mendes Gonçalves | S192: Dirceu Albino Junior | T192: Marcela Soares Ferreira | U192: Dallila Rodrigues Julia | V192: SEI
A193: 9389.601/23 | B193: 9389601 | C193: 2320.01.0003597/2023-75 | D193: Kovalent do Brasil Ltda | E193: Aquisição de Anti-soros para realização de testes de fenotipagem eritrocitária. | F193: Não | H193: 2023-07-13 | I193: 2028-07-12 | J193: 2024-07-13 | K193: 2025-07-12 | L193: 07 | M193: 2025 | N193: - | O193: 126000 | P193: T.GLA.CSO T.GLA.CIH.DOA | R193: Jomara Mendes Gonçalves | S193: Dirceu Albino Junior | T193: Marcela Soares Ferreira | U193: Marisa de Lima Marques Nogueira | V193: SEI
A194: 9433.643/24 | B194: 9433643 | C194: 2320.01.0004082/2024-72 | D194: LAB SHOPPING DIAGNÓSTICA LTDA. | E194: Aquisição de kits reagentes e Prestação de Serviço de manutenção corretiva, preventiva e calibração dos contadores hematológicos ABX Micros 60 da Fundação Hemominas | F194: Não | H194: 2024-07-11 | I194: 2034-07-10 | J194: - | L194: 07 | M194: 2025 | N194: =O194/12 -> 22177.66667 | O194: 266132 | P194: T.GCQ DGI.ENC | R194: Roberto Mauro Ferreira Silva Alexandre Vitor da Silva | S194: Gabriela Coelho de Rezende Alexandre Vitor da Silva | T194: Lizziane d'Ávila Pereira | U194: Maycon do Vale Silva | V194: SEI
A195: 9453.452/25 | B195: 9453452 | C195: 2320.01.0005754/2023-36 | D195: Laboratórios Ecolyzer Ltda. | E195: Prestação de serviço especializado de exame em embalagens de materiais biológicos. | F195: Não | H195: 2025-02-28 | I195: 2035-02-27 | L195: 02 | M195: 2026 | O195: 11000 | P195: CETEBIO | R195: Jucélia Schittini da Silva Morais | S195: Maria Lúcia Soares de Moura | T195: Lizziane d'Ávila Pereira | U195: Marcela Soares Ferreira | V195: SEI
A196: 9441.889/24 | B196: 9441889 | C196: 2320.01.0008529/2024-89 | D196: Lanlink Soluções e Comercialização em Informática S/A. | E196: Prestação de Serviços de softwares de licença Microsoft. | F196: Não | H196: 2024-11-09 | I196: 2028-11-08 | J196: - | L196: 11 | M196: 2025 | N196: - | O196: 4475474.1 | P196: I.GTC.ITS | R196: Fabrine Juliana Fabricio Costa | S196: Daniel Eustáquio Coutinho | T196: Maycon do Vale Silva | U196: Júlia Carolina Soares | V196: SEI
A197: 9440.896/24 | B197: 9440896 | C197: 2320.01.0015031/2024-08 | D197: Líder Notebooks Comércio e Serviços Ltda. | E197: Aquisição de computadores sob demanda (Lote 02). | F197: Não | H197: 2024-10-30 | I197: 2025-10-29 | J197: - | L197: 10 | M197: 2025 | N197: - | O197: 1172100 | P197: I.GTC.ITS | R197: Fabrine Juliana Fabricio Costa | T197: Kele Adriane de Rezende | U197: Maycon do Vale Silva | V197: SEI
A198: 9437.058/24 | B198: 9437058 | C198: 2320.01.0011461/2024-77 | D198: Life Tech Brasil Com. Ind. Prod. Bio. Ltda. | E198: Aquisição de enzimas de restrição e meio RPMI com bicarbonato de sódio (Lotes 03, 04, 05, 06 e 10). | F198: Não | H198: 2024-08-29 | I198: 2025-08-28 | J198: - | L198: 08 | M198: 2025 | N198: - | O198: 12152 | P198: T.GLA.GHI | R198: Luciana Cayres Schmidt | S198: Michelle Theodoro Alves | T198: Lizziane d'Ávila Pereira | U198: Maycon do Vale Silva | V198: SEI
A199: 9392.825/23 | B199: 9392825 | C199: 2320.01.0012181/2023-40 | D199: Life Technologies Brasil Comércio e Indústria de Produtos para Biotecnologia Ltda | E199: Aquisição de Insumos e reagentes necessário para tipificação HLA (média/alta resolução) de amostras de Doadores e Receptores de Medula Óssea (lotes 05, 06, 07 e 08). | F199: Não | H199: 2023-08-26 | I199: 2028-08-25 | J199: 2024-08-26 | K199: 2025-08-25 | L199: 08 | M199: 2025 | N199: - | O199: 15743.92 | P199: T.GLA.HLA | R199: Felipe Carlos Brito de Souza | S199: Luciana Lara Viegas da Aparecida | T199: Marcela Soares Ferreira | U199: Marisa de Lima Marques Nogueira | V199: SEI
A200: 9458.826/25 | B200: 8458826 | C200: 2320.01.0004678/2025-79 | D200: Life Technologies Brasil Comércio e Indústria de Produtos para Biotecnologia Ltda. | E200: Aquisição de meio de cultura e glicerina para o CETEBIO. | F200: Não | H200: 2025-03-27 | I200: (COTEP) | L200: 03 | M200: 2026 | O200: 884.34 | P200: CETEBIO / G.GTTE | R200: Maria Lúcia Soares de Moura | S200: Jucélia Schittini da Silva Morais | T200: Lizziane d'Ávila Pereira | U200: Marcela Soares Ferreira | V200: SEI
... 153 more rows

Sheet Plan1
B1: Quantitativo de Contrato por Diretoria/Gerência
B3: ATE | F3: Unidades Regionais
B4: ATE/GRH/GDT | C4: 1 | D4: 402775 | F4: ALP | G4: 2 | H4: 49918.59
B5: GDI | C5: 1 | D5: 368496.8 | F5: BET | G5: 1 | H5: 12958.7
B6: GFC | C6: 1 | D6: 108800 | F6: CET | G6: 11 | H6: 953663.94
B7: GIF | C7: 17 | D7: 898247.5 | F7: DIV | G7: 6 | H7: 175890.58
B8: GTC | C8: 24 | D8: 17882757.22 | F8: GOV | G8: 11 | H8: 600794.83
B9: Total | C9: =SUM(C4:C8) -> 44 | D9: =SUM(D4:D8) -> 19661076.52 | F9: HBH | G9: 17 | H9: 2010237.16
F10: HJK | G10: 1 | H10: 13990.08
B11: PGF | F11: ITU | G11: 3 | H11: 69450.08
B12: GLG | C12: 76 | D12: 32834812.06 | F12: JFO | G12: 9 | H12: 568131.01
B13: GRH | C13: 11 | D13: 2144089.66 | F13: MCU | G13: 5 | H13: 194502.13
B14: GSO | C14: 77 | D14: 26398529.68 | F14: MOC | G14: 17 | H14: 616636.25
B15: Total | C15: =SUM(C12:C14) -> 164 | D15: =SUM(D12:D14) -> 61377431.4 | F15: PAL | G15: 4 | H15: 151150.99
F16: PAS | G16: 4 | H16: 121126.4
B17: PRE | F17: PMI | G17: 4 | H17: 33479.75
B18: ACS | C18: 3 | D18: 1610117.68 | F18: PNO | G18: 7 | H18: 131426
B19: ASQ | C19: 1 | D19: 64795.03 | F19: POC | G19: 2 | H19: 52846.25
B20: PRO | C20: 1 | D20: 520 | F20: SJR | G20: 4 | H20: 75323.6
B21: Total | C21: =SUM(C18:C20) -> 5 | D21: =SUM(D18:D20) -> 1675432.71 | F21: SLA | G21: 8 | H21: 113310.9
F22: UDI | G22: 7 | H22: 332046.04
B23: TEC | F23: URA | G23: 9 | H23: 212247.09
B24: GCQ | C24: 1 | D24: 117883.92 | F24: TOTAL | G24: =SUM(G4:G23) -> 132 | H24: =SUM(H4:H23) -> 6489130.37
B25: GDT | C25: 2 | D25: 1673968.56
B26: GLA | C26: 15 | D26: 13413172.05
B27: GSA (CAT) | C27: 9 | D27: 3223039.62
B28: Total | C28: =SUM(C24:C27) -> 27 | D28: =SUM(D24:D27) -> 18428064.15
B30: Fonte: FPOP.G.GPO.CCO 01 VERSÃO 04 - 12/07/2018
